Workbook

Sheet Pack A
I1: IITS for Green Line BRTS | R1: 160 | T1: common | U1: AFC | V1: AVM | W1: RTPI | X1: BI | Y1: DMS
F2: List of Consumables Package A | Y2: =SUMIF(T8:T24,Y1,X8:Y24) -> 0
U3: 0.009
A4: Chapter | D4: Alternativen: Mit Buchstaben durchzählen | E4: Optionen | F4: Pos. | G4: A=Alternative O=Optional | H4: A or O: chosen | I4: Item description | J4: unit | K4: no. | L4: cost per item (gross) [ PKR ] | M4: cost per item (gross) [ USD ] | N4: Financial comments on items | O4: cost per position (gross) [ PKR ] | P4: cost per position optional items (gross) [ PKR ] | W4: =SUM(W8:W24) -> 6763211744 | X4: =SUM(X8:X24) -> 60868905.69
O5: =SUM(O8:O24) -> 0 | P5: =SUM(P8:P24) -> 0 | T5: System | V5: PKR per Item | W5: PKR Gross | X5: $ Gross
A6: 1 | B6: =IF(A6="",B5,A6) -> 1 | C6: =IF(B6=B5,IF(OR(O6="",AND(D6<>"",D6<>"a")),C5,C5+1),0) -> 0 | F6: ="Title "&A6 -> Title 1 | G6: List of Consumables Package A | Q6: =SUM(O8:O24) -> 0 | R6: =SUM(P8:P24) -> 0 | Y6: =F6 -> Title 1 | Z6: =SUM(X8:X9) -> 0
B7: 1 | C7: 0 | G7: Consumables | Z7: =SUM(X8:X9) -> 0
B8: =IF(A8="",B7,A8) -> 1 | C8: =IF(B8=B7,IF(OR(O8="",AND(D8<>"",D8<>"a")),C7,C7+1),0) -> 1 | F8: =B8&"."&REPT("0",3-LEN(C8))&C8&D8 -> 1.001 | I8: Batteries for UPS for Central Clearing House System | J8: sets | K8: 4 | O8: =IF($G8="",IF($M8="",$K8*L8,$K8*M8*$R$1),IF($H8="","(not chosen)",IF($M8="",$K8*L8,$K8*M8*$R$1))) -> 0 | P8: =IF($G8="o",IF($H8<>"","(chosen)",IF(ISBLANK($M8),$K8*L8,$K8*$M8*$R$1)),"") -> 
B9: 1 | C9: 2 | F9: =B9&"."&REPT("0",3-LEN(C9))&C9&D9 -> 1.002 | I9: Batteries for UPS for Disaster (standby) System | J9: sets | K9: 4 | O9: 0
B10: =IF(A10="",B9,A10) -> 1 | C10: =IF(B10=B9,IF(OR(O10="",AND(D10<>"",D10<>"a")),C9,C9+1),0) -> 3 | F10: =B10&"."&REPT("0",3-LEN(C10))&C10&D10 -> 1.003 | G10: =IF(D10<>"","a",IF(E10<>"","o","")) ->  | I10: Batteries for UPS for BIAS Sever System | J10: sets | K10: 4 | O10: =IF($G10="",IF($M10="",$K10*L10,$K10*M10*$R$1),IF($H10="","(not chosen)",IF($M10="",$K10*L10,$K10*M10*$R$1))) -> 0 | P10: =IF($G10="o",IF($H10<>"","(chosen)",IF(ISBLANK($M10),$K10*L10,$K10*$M10*$R$1)),"") ->  | T10: BI | V10: 100000 | W10: =V10*K10 -> 400000 | X10: =W10*$U$3 -> 3600
B11: 1 | C11: 4 | F11: 1.004 | I11: Batteries for UPS for Disaster (standby) System | J11: sets | K11: 4 | O11: 0 | T11: BI | V11: 100000 | W11: 400000 | X11: 3600
B12: =IF(A12="",B11,A12) -> 1 | C12: =IF(B12=B11,IF(OR(O12="",AND(D12<>"",D12<>"a")),C11,C11+1),0) -> 5 | F12: =B12&"."&REPT("0",3-LEN(C12))&C12&D12 -> 1.005 | I12: Batteries for UPS for AFMC System | J12: sets | K12: 4 | O12: =IF($G12="",IF($M12="",$K12*L12,$K12*M12*$R$1),IF($H12="","(not chosen)",IF($M12="",$K12*L12,$K12*M12*$R$1))) -> 0 | P12: =IF($G12="o",IF($H12<>"","(chosen)",IF(ISBLANK($M12),$K12*L12,$K12*$M12*$R$1)),"") -> 
B13: 1 | C13: 6 | F13: =B13&"."&REPT("0",3-LEN(C13))&C13&D13 -> 1.006 | I13: Batteries for UPS for Disaster (standby) System | J13: sets | K13: 4 | O13: 0
B14: 1 | C14: 7 | F14: =B14&"."&REPT("0",3-LEN(C14))&C14&D14 -> 1.007 | G14: =IF(D14<>"","a",IF(E14<>"","o","")) ->  | I14: TOM supplies Receipt printer paper, enough for 100,000 receipts per day for 6 months | J14: set | K14: 20 | O14: =IF($G14="",IF($M14="",$K14*L14,$K14*M14*$R$1),IF($H14="","(not chosen)",IF($M14="",$K14*L14,$K14*M14*$R$1))) -> 0 | P14: =IF($G14="o",IF($H14<>"","(chosen)",IF(ISBLANK($M14),$K14*L14,$K14*$M14*$R$1)),"") ->  | T14: AFC | V14: =1.4723*(472604.3184) -> 695815.338 | W14: =V14*K14 -> 13916306.76 | X14: =W14*$U$3 -> 125246.7608
B15: 1 | C15: 8 | F15: =B15&"."&REPT("0",3-LEN(C15))&C15&D15 -> 1.008 | G15: =IF(D15<>"","a",IF(E15<>"","o","")) ->  | I15: TOM supplies refill for Card printer for cards enough for 10,000 cards per day for 6 months | J15: set | K15: 20 | O15: =IF($G15="",IF($M15="",$K15*L15,$K15*M15*$R$1),IF($H15="","(not chosen)",IF($M15="",$K15*L15,$K15*M15*$R$1))) -> 0 | P15: =IF($G15="o",IF($H15<>"","(chosen)",IF(ISBLANK($M15),$K15*L15,$K15*$M15*$R$1)),"") ->  | T15: AFC | V15: =1.4723*(472604.3184) -> 695815.338 | W15: 13916306.76 | X15: 125246.7608
B16: =IF(A16="",B15,A16) -> 1 | C16: =IF(B16=B15,IF(OR(O16="",AND(D16<>"",D16<>"a")),C15,C15+1),0) -> 9 | F16: =B16&"."&REPT("0",3-LEN(C16))&C16&D16 -> 1.009 | G16: =IF(D16<>"","a",IF(E16<>"","o","")) ->  | I16: TVM supplies Receipt printer paper enough for 20,000 receipts per day for 6 months | J16: set | K16: 20 | O16: =IF($G16="",IF($M16="",$K16*L16,$K16*M16*$R$1),IF($H16="","(not chosen)",IF($M16="",$K16*L16,$K16*M16*$R$1))) -> 0 | P16: =IF($G16="o",IF($H16<>"","(chosen)",IF(ISBLANK($M16),$K16*L16,$K16*$M16*$R$1)),"") ->  | T16: AFC | V16: 3504611.302 | W16: 70092226.05 | X16: 630830.0344
B17: 1 | C17: 10 | F17: =B17&"."&REPT("0",3-LEN(C17))&C17&D17 -> 1.010 | G17: =IF(D17<>"","a",IF(E17<>"","o","")) ->  | I17: TOM supplies refill for receipt printer for reciepts enough for 100,000 receipts per day for 6 months | J17: set | K17: 20 | O17: =IF($G17="",IF($M17="",$K17*L17,$K17*M17*$R$1),IF($H17="","(not chosen)",IF($M17="",$K17*L17,$K17*M17*$R$1))) -> 0 | P17: =IF($G17="o",IF($H17<>"","(chosen)",IF(ISBLANK($M17),$K17*L17,$K17*$M17*$R$1)),"") ->  | T17: AFC | V17: 3504611.302 | W17: 70092226.05 | X17: 630830.0344
B18: 1 | C18: 11 | F18: 1.011 | I18: TVM supplies Receipt printer paper enough for 20,000 receipts per day for 6 months | J18: set | K18: 20 | O18: 0 | T18: AFC | V18: 3504611.302 | W18: =V18*K18 -> 70092226.05 | X18: =W18*$U$3 -> 630830.0344
B19: 1 | C19: 12 | F19: =B19&"."&REPT("0",3-LEN(C19))&C19&D19 -> 1.012 | G19: =IF(D19<>"","a",IF(E19<>"","o","")) ->  | I19: HHM supplies refill for receipt printer for receipts enough for 20,000 receipts per day for 6 months | J19: set | K19: 20 | O19: =IF($G19="",IF($M19="",$K19*L19,$K19*M19*$R$1),IF($H19="","(not chosen)",IF($M19="",$K19*L19,$K19*M19*$R$1))) -> 0 | P19: =IF($G19="o",IF($H19<>"","(chosen)",IF(ISBLANK($M19),$K19*L19,$K19*$M19*$R$1)),"") ->  | T19: AFC | V19: 3504611.302 | W19: 70092226.05 | X19: 630830.0344
B20: 1 | C20: 13 | F20: =B20&"."&REPT("0",3-LEN(C20))&C20&D20 -> 1.013 | G20: =IF(D20<>"","a",IF(E20<>"","o","")) ->  | I20: HHM supplies refill for receipt printer for cards enough for 20,000 receipts per day for 6 months | J20: set | K20: 20 | O20: =IF($G20="",IF($M20="",$K20*L20,$K20*M20*$R$1),IF($H20="","(not chosen)",IF($M20="",$K20*L20,$K20*M20*$R$1))) -> 0 | P20: =IF($G20="o",IF($H20<>"","(chosen)",IF(ISBLANK($M20),$K20*L20,$K20*$M20*$R$1)),"") ->  | T20: AFC | V20: 3504611.302 | W20: 70092226.05 | X20: 630830.0344
B21: 1 | C21: 14 | F21: =B21&"."&REPT("0",3-LEN(C21))&C21&D21 -> 1.014 | G21: =IF(D21<>"","a",IF(E21<>"","o","")) ->  | I21: TUM supplies refill for Card printer for cards enough for 10,000 receipts per day for 6 months | J21: set | K21: 20 | O21: =IF($G21="",IF($M21="",$K21*L21,$K21*M21*$R$1),IF($H21="","(not chosen)",IF($M21="",$K21*L21,$K21*M21*$R$1))) -> 0 | P21: =IF($G21="o",IF($H21<>"","(chosen)",IF(ISBLANK($M21),$K21*L21,$K21*$M21*$R$1)),"") ->  | T21: AFC | V21: 527800 | W21: 10556000 | X21: 95004
B22: 1 | C22: 15 | F22: =B22&"."&REPT("0",3-LEN(C22))&C22&D22 -> 1.015 | G22: =IF(D22<>"","a",IF(E22<>"","o","")) ->  | I22: TUM supplies Receipt printer paper enough for 10,000 receipts per day for 6 months | J22: set | K22: 20 | O22: =IF($G22="",IF($M22="",$K22*L22,$K22*M22*$R$1),IF($H22="","(not chosen)",IF($M22="",$K22*L22,$K22*M22*$R$1))) -> 0 | P22: =IF($G22="o",IF($H22<>"","(chosen)",IF(ISBLANK($M22),$K22*L22,$K22*$M22*$R$1)),"") ->  | T22: AFC | V22: 527800 | W22: 10556000 | X22: 95004
B23: 1 | C23: 16 | F23: =B23&"."&REPT("0",3-LEN(C23))&C23&D23 -> 1.016 | G23: =IF(D23<>"","a",IF(E23<>"","o","")) ->  | I23: Lubricant for moving parts of Turnstiles etc. at least 300 ml bottle/can. | J23: pcs | K23: =25*4*12*10 -> 12000 | O23: =IF($G23="",IF($M23="",$K23*L23,$K23*M23*$R$1),IF($H23="","(not chosen)",IF($M23="",$K23*L23,$K23*M23*$R$1))) -> 0 | P23: =IF($G23="o",IF($H23<>"","(chosen)",IF(ISBLANK($M23),$K23*L23,$K23*$M23*$R$1)),"") ->  | T23: AFC | V23: 527800 | W23: 6333600000 | X23: 57002400
B24: 1 | C24: 17 | F24: =B24&"."&REPT("0",3-LEN(C24))&C24&D24 -> 1.017 | G24: =IF(D24<>"","a",IF(E24<>"","o","")) ->  | I24: HHM hardware battery pack | J24: pcs. | K24: 150 | O24: =IF($G24="",IF($M24="",$K24*L24,$K24*M24*$R$1),IF($H24="","(not chosen)",IF($M24="",$K24*L24,$K24*M24*$R$1))) -> 0 | P24: =IF($G24="o",IF($H24<>"","(chosen)",IF(ISBLANK($M24),$K24*L24,$K24*$M24*$R$1)),"") ->  | T24: AFC | V24: 196040 | W24: 29406000 | X24: 264654
F26: Sum of | G26: 1 | I26: =INDEX($G$5:$G$24,MATCH(G26,$A$5:$A$24,0)) -> List of Consumables Package A | O26: =INDEX($Q$5:$Q$24,MATCH(G26,$A$5:$A$24,0)) -> 0 | P26: =INDEX($R$5:$R$24,MATCH(G26,$A$5:$A$24,0)) -> 0
F28: Sub total over all choosen items | O28: =SUM(O26:O26) -> 0
F29: Sub total over all optional items | P29: =SUM(P26:P26) -> 0
F30: Over all sum (choosen and optional items) | O30: =O28+P29 -> 0

Sheet Pack B
I1: IITS for Green Line BRTS | R1: 160
F2: List of Consumables Package B
A4: Chapter | D4: Alternativen: Mit Buchstaben durchzählen | E4: Optionen | F4: Pos. | G4: A=Alternative O=Optional | H4: A or O: chosen | I4: Item description | J4: unit | K4: no. | L4: cost per item (gross) [ PKR ] | M4: cost per item (gross) [ USD ] | N4: Financial comments on items | O4: cost per position (gross) [ PKR ] | P4: cost per position optional items (gross) [ PKR ]
A5: 0 | O5: =SUM(O8:O19) -> 0 | P5: =SUM(P8:P19) -> 0
A6: =B5+1 -> 1 | B6: =IF(A6="",B5,A6) -> 1 | C6: =IF(B6=B5,IF(OR(O6="",AND(D6<>"",D6<>"a")),C5,C5+1),0) -> 0 | F6: ="Title "&A6 -> Title 1 | G6: List of Consumables Package B | Q6: =SUM(O8:O19) -> 0 | R6: =SUM(P8:P19) -> 0
B7: 1 | C7: =IF(B7=B6,IF(OR(O7="",AND(D7<>"",D7<>"a")),C6,C6+1),0) -> 0 | G7: Consumables
B8: =IF(A8="",B7,A8) -> 1 | C8: =IF(B8=B7,IF(OR(O8="",AND(D8<>"",D8<>"a")),C7,C7+1),0) -> 1 | F8: =B8&"."&REPT("0",3-LEN(C8))&C8&D8 -> 1.001 | G8: =IF(D8<>"","a",IF(E8<>"","o","")) ->  | I8: Batteries for UPS of EMS Workstations | J8: sets | K8: 4 | O8: =IF($G8="",IF($M8="",$K8*L8,$K8*M8*$R$1),IF($H8="","(not chosen)",IF($M8="",$K8*L8,$K8*M8*$R$1))) -> 0 | P8: =IF($G8="o",IF($H8<>"","(chosen)",IF(ISBLANK($M8),$K8*L8,$K8*$M8*$R$1)),"") -> 
B9: 1 | C9: 2 | F9: =B9&"."&REPT("0",3-LEN(C9))&C9&D9 -> 1.002 | G9: =IF(D9<>"","a",IF(E9<>"","o","")) ->  | I9: Batteries for UPS 5 kVA | J9: sets | K9: 4 | O9: =IF($G9="",IF($M9="",$K9*L9,$K9*M9*$R$1),IF($H9="","(not chosen)",IF($M9="",$K9*L9,$K9*M9*$R$1))) -> 0 | P9: =IF($G9="o",IF($H9<>"","(chosen)",IF(ISBLANK($M9),$K9*L9,$K9*$M9*$R$1)),"") -> 
B10: 1 | C10: 3 | F10: 1.003 | I10: Batteries for UPS 2 KVA | J10: sets | K10: 4 | O10: 0
B11: 1 | C11: 4 | F11: =B11&"."&REPT("0",3-LEN(C11))&C11&D11 -> 1.004 | G11: =IF(D11<>"","a",IF(E11<>"","o","")) ->  | I11: Batteries for UPS System 2 kva for Corridor CCTV Camera | J11: sets | K11: 100 | O11: =IF($G11="",IF($M11="",$K11*L11,$K11*M11*$R$1),IF($H11="","(not chosen)",IF($M11="",$K11*L11,$K11*M11*$R$1))) -> 0 | P11: =IF($G11="o",IF($H11<>"","(chosen)",IF(ISBLANK($M11),$K11*L11,$K11*$M11*$R$1)),"") -> 
B12: 1 | C12: 5 | F12: 1.005 | I12: Batteries for UPS System 2 kva True Online for CCTV Camera | J12: sets | K12: 4 | O12: =IF($G12="",IF($M12="",$K12*L12,$K12*M12*$R$1),IF($H12="","(not chosen)",IF($M12="",$K12*L12,$K12*M12*$R$1))) -> 0 | P12: =IF($G12="o",IF($H12<>"","(chosen)",IF(ISBLANK($M12),$K12*L12,$K12*$M12*$R$1)),"") -> 
B13: 1 | C13: 6 | F13: =B13&"."&REPT("0",3-LEN(C13))&C13&D13 -> 1.006 | G13: =IF(D13<>"","a",IF(E13<>"","o","")) ->  | I13: Batteries for Hand held scanners | J13: sets | K13: 250 | O13: =IF($G13="",IF($M13="",$K13*L13,$K13*M13*$R$1),IF($H13="","(not chosen)",IF($M13="",$K13*L13,$K13*M13*$R$1))) -> 0 | P13: =IF($G13="o",IF($H13<>"","(chosen)",IF(ISBLANK($M13),$K13*L13,$K13*$M13*$R$1)),"") -> 
B14: 1 | C14: 7 | F14: =B14&"."&REPT("0",3-LEN(C14))&C14&D14 -> 1.007 | G14: =IF(D14<>"","a",IF(E14<>"","o","")) ->  | I14: Batteries for UPS for storage system, 100 kVA, batteries for 30 min backup time | J14: sets | K14: 3 | O14: =IF($G14="",IF($M14="",$K14*L14,$K14*M14*$R$1),IF($H14="","(not chosen)",IF($M14="",$K14*L14,$K14*M14*$R$1))) -> 0 | P14: =IF($G14="o",IF($H14<>"","(chosen)",IF(ISBLANK($M14),$K14*L14,$K14*$M14*$R$1)),"") -> 
B15: 1 | C15: 8 | F15: =B15&"."&REPT("0",3-LEN(C15))&C15&D15 -> 1.008 | G15: =IF(D15<>"","a",IF(E15<>"","o","")) ->  | I15: Fiber optic lapping film | J15: pcs | K15: 150 | O15: =IF($G15="",IF($M15="",$K15*L15,$K15*M15*$R$1),IF($H15="","(not chosen)",IF($M15="",$K15*L15,$K15*M15*$R$1))) -> 0 | P15: =IF($G15="o",IF($H15<>"","(chosen)",IF(ISBLANK($M15),$K15*L15,$K15*$M15*$R$1)),"") -> 
B16: =IF(A16="",B15,A16) -> 1 | C16: =IF(B16=B15,IF(OR(O16="",AND(D16<>"",D16<>"a")),C15,C15+1),0) -> 9 | F16: =B16&"."&REPT("0",3-LEN(C16))&C16&D16 -> 1.009 | G16: =IF(D16<>"","a",IF(E16<>"","o","")) ->  | I16: Fiber Epoxy glue | J16: pcs | K16: 300 | O16: =IF($G16="",IF($M16="",$K16*L16,$K16*M16*$R$1),IF($H16="","(not chosen)",IF($M16="",$K16*L16,$K16*M16*$R$1))) -> 0 | P16: =IF($G16="o",IF($H16<>"","(chosen)",IF(ISBLANK($M16),$K16*L16,$K16*$M16*$R$1)),"") -> 
B17: 1 | C17: 10 | F17: =B17&"."&REPT("0",3-LEN(C17))&C17&D17 -> 1.010 | G17: =IF(D17<>"","a",IF(E17<>"","o","")) ->  | I17: Batteries for UPS for NVR in Station, 1 KVA, true online with 15 min back up time | J17: sets | K17: 100 | O17: =IF($G17="",IF($M17="",$K17*L17,$K17*M17*$R$1),IF($H17="","(not chosen)",IF($M17="",$K17*L17,$K17*M17*$R$1))) -> 0 | P17: =IF($G17="o",IF($H17<>"","(chosen)",IF(ISBLANK($M17),$K17*L17,$K17*$M17*$R$1)),"") -> 
B18: 1 | C18: 11 | F18: =B18&"."&REPT("0",3-LEN(C18))&C18&D18 -> 1.011 | G18: =IF(D18<>"","a",IF(E18<>"","o","")) ->  | I18: Tapes for Data Archiving sufficient for data backup of 1 month | J18: sets | K18: 120 | O18: =IF($G18="",IF($M18="",$K18*L18,$K18*M18*$R$1),IF($H18="","(not chosen)",IF($M18="",$K18*L18,$K18*M18*$R$1))) -> 0 | P18: =IF($G18="o",IF($H18<>"","(chosen)",IF(ISBLANK($M18),$K18*L18,$K18*$M18*$R$1)),"") -> 
B19: =IF(A19="",B18,A19) -> 1 | C19: =IF(B19=B18,IF(OR(O19="",AND(D19<>"",D19<>"a")),C18,C18+1),0) -> 12 | F19: 1.012 | I19: Batteries for UPS for NVR in Station, 1 KVA, true online with 15 min back up time | J19: sets | K19: 100 | O19: 0
F21: Sum of | G21: 1 | I21: =INDEX($G$5:$G$19,MATCH(G21,$A$5:$A$19,0)) -> List of Consumables Package B | O21: =INDEX($Q$5:$Q$19,MATCH(G21,$A$5:$A$19,0)) -> 0 | P21: =INDEX($R$5:$R$19,MATCH(G21,$A$5:$A$19,0)) -> 0
F23: Sub total over all choosen items | O23: =SUM(O21:O21) -> 0
F24: Sub total over all optional items | P24: =SUM(P21:P21) -> 0
F25: Over all sum (choosen and optional items) | O25: =O23+P24 -> 0

Sheet highlevel Pack A
C1: ='Pack A'!I1 -> IITS for Green Line BRTS
A3: IITS Green Line Package A
A4: ='Pack A'!F4 -> Pos. | B4: ='Pack A'!I4&" - "&'Pack A'!F2 -> Item description - List of Consumables Package A | C4: ='Pack A'!I4 -> Item description | D4: ='Pack A'!J4 -> unit | E4: ='Pack A'!K4 -> no. | F4: ='Pack A'!L4 -> cost per item (gross) [ PKR ] | G4: ='Pack A'!N4 -> Financial comments on items | H4: ='Pack A'!O4 -> cost per position (gross) [ PKR ] | I4: ='Pack A'!P4 -> cost per position optional items (gross) [ PKR ] | J4: EE Mandatory items (Gross $) | K4: EE Mandatory items (Gross PKR)
B5: Total | H5: ='Pack A'!O5 -> 0 | I5: ='Pack A'!P5 -> 0 | J5: =SUM(J6:J8) -> 0 | K5: =SUM(K6:K8) -> 0
A6: ='Pack A'!F6 -> Title 1 | B6: ='Pack A'!G6 -> List of Consumables Package A | H6: ='Pack A'!Q6 -> 0 | I6: ='Pack A'!R6 -> 0 | J6: =INDEX('Pack A'!$Z$6:$Z$24,MATCH(A6,'Pack A'!$Y$6:$Y$24,0)) -> 0 | K6: ='Pack A'!Q6 -> 0
B7: ='Pack A'!G7 -> Consumables

Sheet highlevel Pack B
B3: IITS Green Line Package B
A4: ='Pack B'!F4 -> Pos. | B4: ='Pack B'!I4&" - "&'Pack B'!F2 -> Item description - List of Consumables Package B | C4: ='Pack B'!O4 -> cost per position (gross) [ PKR ] | D4: ='Pack B'!P4 -> cost per position optional items (gross) [ PKR ]
C5: =SUM(C6:C6) -> 0 | D5: ='Pack B'!P5 -> 0
A6: ='Pack B'!F6 -> Title 1 | B6: ='Pack B'!G6 -> List of Consumables Package B | C6: ='Pack B'!Q6 -> 0 | D6: ='Pack B'!R6 -> 0

Sheet Pack A Cost Breakdown L1 (hidden)
N1: 2019-10-29 | T1: CD | U1: ST | V1: IT | W1: ACD
R2: HW tax & Duties | T2: 0.03 | U2: 0.17 | V2: 0.055 | W2: 0.02 | X2: =SUM(T2:W2)-U2 -> 0.105 | Y2: =100%-X2 -> 0.895
A3: IITS Green Line Package A Engineer's Estimate Breakdown | R3: SW Tax & duties | T3: 0.11 | U3: 0.17 | V3: 0.055 | W3: 0.02 | X3: =SUM(T3:W3)-U3 -> 0.185 | Y3: =100%-X3 -> 0.815
A4: ='Pack A'!F4 -> Pos. | B4: ='Pack A'!I4&" - "&'Pack A'!F2 -> Item description - List of Consumables Package A | C4: ='Pack A'!J4 -> unit | D4: qty | E4: ='Pack A'!L4 -> cost per item (gross) [ PKR ] | F4: Amount | G4: Taxes and duties | K4: Unit cost witout GST | L4: Unitcost with GST | M4: Total Amount without GST | N4: Total Amount with GST | R4: Services | T4: 0 | U4: 0.13 | V4: 0.055 | W4: 0 | X4: =SUM(T4:W4)-U4 -> 0.055 | Y4: =100%-X4 -> 0.945
B5: Total | G5: CD | H5: IT | I5: ACD | J5: other | M5: =SUM(M6:M69) ->  | N5: =SUM(N6:N69) -> 
A6: ='Pack A'!F6 -> Title 1 | B6: ='Pack A'!G6 -> List of Consumables Package A | Q6: =SUM(Q7:Q8) -> 
B7: ='Pack A'!G7 -> Consumables | C7: l.s. | D7: 1 | E7: =Q7/($X$2+1) -> 0 | F7: =E7*D7 -> 0 | G7: =$E7*T$2 -> 0 | H7: =$E7*V$2 -> 0 | I7: =$E7*W$2 -> 0 | K7: =M7/D7 -> 0 | L7: =N7/D7 -> 0 | M7: =SUM(F7:I7) -> 0 | N7: =M7*(1+$U$2) -> 0 | O7: ='Pack A'!Z7 -> 0 | P7: =O7/0.009 -> 0 | Q7: =P7*'highlevel Pack A'!N8 -> 0
B8: ='Pack A'!#REF! ->  | C8: l.s. | D8: 1 | E8: =Q8/($X$2+1) ->  | F8: =E8*D8 ->  | G8: =$E8*T$2 ->  | H8: =$E8*V$2 ->  | I8: =$E8*W$2 ->  | K8: =M8/D8 ->  | L8: =N8/D8 ->  | M8: =SUM(F8:I8) ->  | N8: =M8*(1+$U$2) ->  | O8: ='Pack A'!#REF! ->  | P8: =O8/0.009 ->  | Q8: =P8*'highlevel Pack A'!N8 -> 
A9: ='Pack A'!#REF! ->  | B9: ='Pack A'!#REF! ->  | E9: =Q9/($X$2+1) -> 0 | F9: =E9*D9 -> 0 | G9: =$E9*T$2 -> 0 | H9: =$E9*V$2 -> 0 | I9: =$E9*W$2 -> 0 | P9: =O9/0.009 -> 0
B10: ='Pack A'!#REF! ->  | C10: l.s. | D10: 1 | K10: =M10/D10 ->  | M10: =SUM(F10:I10) ->  | N10: =M10*(1+$U$2) ->  | O10: ='Pack A'!#REF! ->  | Q10: =P10*'highlevel Pack A'!#REF! -> 
B11: ='Pack A'!#REF! ->  | C11: l.s. | D11: 1 | E11: =Q11/($X$2+1) ->  | F11: =E11*D11 ->  | G11: =$E11*T$2 ->  | H11: =$E11*V$2 ->  | I11: =$E11*W$2 ->  | M11: =SUM(F11:I11) ->  | O11: ='Pack A'!#REF! ->  | Q11: =P11*'highlevel Pack A'!#REF! -> 
B12: ='Pack A'!#REF! ->  | C12: l.s. | D12: 1 | O12: ='Pack A'!#REF! ->  | Q12: =P12*'highlevel Pack A'!#REF! -> 
B13: ='Pack A'!#REF! ->  | C13: l.s. | D13: 1 | E13: =Q13/($X$3+1) ->  | G13: =$E13*T$3 ->  | H13: =$E13*V$3 ->  | I13: =$E13*W$3 ->  | O13: ='Pack A'!#REF! ->  | Q13: =P13*'highlevel Pack A'!#REF! -> 
B14: ='Pack A'!#REF! ->  | C14: l.s. | D14: 1 | E14: =Q14/($X$3+1) ->  | F14: =E14*D14 ->  | G14: =$E14*T$3 ->  | H14: =$E14*V$3 ->  | I14: =$E14*W$3 ->  | O14: ='Pack A'!#REF! ->  | Q14: =P14*'highlevel Pack A'!#REF! -> 
B15: ='Pack A'!#REF! ->  | C15: l.s. | D15: 1 | O15: ='Pack A'!#REF! ->  | Q15: =P15*'highlevel Pack A'!#REF! -> 
A16: ='Pack A'!#REF! ->  | B16: ='Pack A'!#REF! ->  | E16: =Q16/($X$3+1) -> 0 | F16: =E16*D16 -> 0 | G16: =$E16*T$3 -> 0 | H16: =$E16*V$3 -> 0 | I16: =$E16*W$3 -> 0 | M16: =SUM(F16:I16) -> 0 | P16: 0
B17: ='Pack A'!#REF! ->  | C17: l.s. | D17: 1 | E17: =Q17/($X$2+1) ->  | G17: =$E17*T$2 ->  | H17: =$E17*V$2 ->  | I17: =$E17*W$2 ->  | K17: =M17/D17 ->  | O17: ='Pack A'!#REF! ->  | Q17: =P17*'highlevel Pack A'!#REF! -> 
B18: ='Pack A'!#REF! ->  | C18: l.s. | D18: 1 | K18: =M18/D18 ->  | O18: ='Pack A'!#REF! ->  | Q18: =P18*'highlevel Pack A'!#REF! -> 
A19: ='Pack A'!#REF! ->  | B19: ='Pack A'!#REF! ->  | P19: 0 | Q19: =P19*'highlevel Pack A'!#REF! -> 
B20: ='Pack A'!#REF! ->  | C20: l.s. | D20: 1 | E20: =Q20/($X$2+1) ->  | G20: =$E20*T$2 ->  | H20: =$E20*V$2 ->  | I20: =$E20*W$2 ->  | K20: =M20/D20 ->  | O20: ='Pack A'!#REF! ->  | Q20: =P20*'highlevel Pack A'!#REF! -> 
B21: ='Pack A'!#REF! ->  | C21: l.s. | D21: 1 | K21: =M21/D21 ->  | O21: ='Pack A'!#REF! ->  | Q21: =P21*'highlevel Pack A'!#REF! -> 
A22: ='Pack A'!#REF! ->  | B22: ='Pack A'!#REF! ->  | P22: 0 | Q22: =P22*'highlevel Pack A'!#REF! -> 
B23: ='Pack A'!#REF! ->  | C23: l.s. | D23: 1 | E23: =Q23/($X$2+1) ->  | G23: =$E23*T$2 ->  | H23: =$E23*V$2 ->  | I23: =$E23*W$2 ->  | K23: =M23/D23 ->  | O23: ='Pack A'!#REF! ->  | Q23: =P23*'highlevel Pack A'!#REF! -> 
B24: ='Pack A'!#REF! ->  | C24: l.s. | D24: 1 | E24: =Q24/($X$3+1) ->  | K24: =M24/D24 ->  | O24: ='Pack A'!#REF! ->  | Q24: =P24*'highlevel Pack A'!#REF! -> 
A25: ='Pack A'!#REF! ->  | B25: ='Pack A'!#REF! ->  | E25: =Q25/($X$3+1) ->  | F25: =E25*D25 ->  | G25: =$E25*T$3 ->  | H25: =$E25*V$3 ->  | I25: =$E25*W$3 ->  | P25: 0 | Q25: =P25*'highlevel Pack A'!#REF! -> 
B26: ='Pack A'!#REF! ->  | C26: l.s. | D26: 1 | K26: =M26/D26 ->  | O26: ='Pack A'!#REF! ->  | Q26: =P26*'highlevel Pack A'!#REF! -> 
B27: ='Pack A'!#REF! ->  | C27: l.s. | D27: 1 | E27: =Q27/($X$2+1) ->  | G27: =$E27*T$2 ->  | H27: =$E27*V$2 ->  | I27: =$E27*W$2 ->  | K27: =M27/D27 ->  | O27: ='Pack A'!#REF! ->  | Q27: =P27*'highlevel Pack A'!#REF! -> 
B28: ='Pack A'!#REF! ->  | C28: l.s. | D28: 1 | E28: =Q28/($X$2+1) ->  | F28: =E28*D28 ->  | G28: =$E28*T$2 ->  | H28: =$E28*V$2 ->  | I28: =$E28*W$2 ->  | K28: =M28/D28 ->  | O28: ='Pack A'!#REF! ->  | Q28: =P28*'highlevel Pack A'!#REF! -> 
B29: ='Pack A'!#REF! ->  | C29: l.s. | D29: 1 | E29: =Q29/($X$3+1) ->  | F29: =E29*D29 ->  | G29: =$E29*T$3 ->  | H29: =$E29*V$3 ->  | I29: =$E29*W$3 ->  | K29: =M29/D29 ->  | O29: ='Pack A'!#REF! ->  | Q29: =P29*'highlevel Pack A'!#REF! -> 
A30: ='Pack A'!#REF! ->  | B30: ='Pack A'!#REF! ->  | E30: =Q30/($X$2+1) ->  | G30: =$E30*T$2 ->  | H30: =$E30*V$2 ->  | I30: =$E30*W$2 ->  | P30: 0 | Q30: =P30*'highlevel Pack A'!#REF! -> 
B31: ='Pack A'!#REF! ->  | C31: l.s. | D31: 1 | K31: =M31/D31 ->  | O31: ='Pack A'!#REF! ->  | Q31: =P31*'highlevel Pack A'!#REF! -> 
B32: ='Pack A'!#REF! ->  | C32: l.s. | D32: 1 | E32: =Q32/($X$3+1) ->  | G32: =$E32*T$3 ->  | H32: =$E32*V$3 ->  | I32: =$E32*W$3 ->  | O32: ='Pack A'!#REF! ->  | Q32: =P32*'highlevel Pack A'!#REF! -> 
B33: ='Pack A'!#REF! ->  | C33: l.s. | D33: 1 | E33: =Q33/($X$3+1) ->  | F33: =E33*D33 ->  | G33: =$E33*T$3 ->  | H33: =$E33*V$3 ->  | I33: =$E33*W$3 ->  | O33: ='Pack A'!#REF! ->  | Q33: =P33*'highlevel Pack A'!#REF! -> 
A34: ='Pack A'!#REF! ->  | B34: ='Pack A'!#REF! ->  | C34: pcs | D34: ='Data Sheet'!Z9 -> 55 | E34: =(Q34/($X$2+1))/'Data Sheet'!Z9 ->  | G34: =$F34*T$2 ->  | H34: =$F34*V$2 ->  | I34: =$F34*W$2 ->  | O34: ='Pack A'!#REF! ->  | Q34: =P34*'highlevel Pack A'!#REF! -> 
A35: ='Pack A'!#REF! ->  | B35: ='Pack A'!#REF! ->  | C35: pcs | D35: ='Data Sheet'!Z10 -> 37 | E35: =(Q35/($X$2+1))/'Data Sheet'!Z10 ->  | F35: =E35*D35 ->  | G35: =$F35*T$2 ->  | H35: =$F35*V$2 ->  | I35: =$F35*W$2 ->  | O35: ='Pack A'!#REF! ->  | Q35: =P35*'highlevel Pack A'!#REF! -> 
A36: ='Pack A'!#REF! ->  | B36: ='Pack A'!#REF! ->  | C36: pcs | D36: ='Data Sheet'!Z11 -> 32 | E36: =(Q36/($X$2+1))/'Data Sheet'!Z11 ->  | O36: ='Pack A'!#REF! ->  | Q36: =P36*'highlevel Pack A'!#REF! -> 
A37: ='Pack A'!#REF! ->  | B37: ='Pack A'!#REF! ->  | C37: pcs | D37: ='Data Sheet'!Z12 -> 30 | E37: =(Q37/($X$2+1))/'Data Sheet'!Z12 ->  | O37: ='Pack A'!#REF! ->  | Q37: =P37*'highlevel Pack A'!#REF! -> 
A38: ='Pack A'!#REF! ->  | B38: ='Pack A'!#REF! ->  | E38: =(Q38/($X$2+1))/'Data Sheet'!Z13 ->  | P38: 0 | Q38: =P38*'highlevel Pack A'!#REF! -> 
B39: ='Pack A'!#REF! ->  | C39: l.s. | D39: ='Data Sheet'!W1 -> 25 | E39: =(Q39/($X$2+1))/'Data Sheet'!W1 ->  | K39: =M39/D39 ->  | O39: ='Pack A'!#REF! ->  | Q39: =P39*'highlevel Pack A'!#REF! -> 
B40: ='Pack A'!#REF! ->  | C40: pcs | D40: ='Data Sheet'!Z14+'Data Sheet'!Z15 -> 227 | E40: =(Q40/($X$2+1))/('Data Sheet'!Z15+'Data Sheet'!Z14) ->  | K40: =M40/D40 ->  | O40: ='Pack A'!#REF! ->  | Q40: =P40*'highlevel Pack A'!#REF! -> 
B41: ='Pack A'!#REF! ->  | D41: 0 | E41: =(Q41/($X$2+1))/('Data Sheet'!Z16+'Data Sheet'!Z15) ->  | F41: =E41*D41 ->  | G41: =$F41*T$2 ->  | H41: =$F41*V$2 ->  | I41: =$F41*W$2 ->  | O41: ='Pack A'!#REF! ->  | Q41: =P41*'highlevel Pack A'!#REF! -> 
A42: ='Pack A'!#REF! ->  | B42: ='Pack A'!#REF! ->  | E42: =(Q42/($X$2+1))/('Data Sheet'!Z17+'Data Sheet'!Z16) ->  | O42: 0 | P42: 0 | Q42: =P42*'highlevel Pack A'!#REF! -> 
A43: ='Pack A'!#REF! ->  | B43: ='Pack A'!#REF! ->  | E43: =(Q43/($X$2+1))/('Data Sheet'!Z18+'Data Sheet'!Z17) ->  | P43: 0 | Q43: =P43*'highlevel Pack A'!#REF! -> 
B44: ='Pack A'!#REF! ->  | C44: pcs | D44: ='Data Sheet'!Z17 -> 80 | E44: =(Q44/($X$2+1))/('Data Sheet'!Z17) ->  | K44: =M44/D44 ->  | O44: ='Pack A'!#REF! ->  | Q44: =P44*'highlevel Pack A'!#REF! -> 
B45: ='Pack A'!#REF! ->  | C45: l.s. | D45: 1 | E45: =(Q45/($X$3+1)) ->  | F45: =E45*D45 ->  | G45: =$F45*T$3 ->  | H45: =$F45*V$3 ->  | I45: =$F45*W$3 ->  | K45: =M45/D45 ->  | O45: ='Pack A'!#REF! ->  | Q45: =P45*'highlevel Pack A'!#REF! -> 
A46: ='Pack A'!#REF! ->  | B46: ='Pack A'!#REF! ->  | C46: pcs | D46: ='Data Sheet'!Z24 -> 325 | E46: =(Q46/($X$2+1))/('Data Sheet'!Z24) ->  | G46: =$F46*T$2 ->  | H46: =$F46*V$2 ->  | I46: =$F46*W$2 ->  | K46: =M46/D46 ->  | O46: ='Pack A'!#REF! ->  | Q46: =P46*'highlevel Pack A'!#REF! -> 
A47: ='Pack A'!#REF! ->  | B47: ='Pack A'!#REF! ->  | E47: =(Q47/($X$2+1))/('Data Sheet'!Z25) ->  | F47: =E47*D47 ->  | G47: =$F47*T$2 ->  | H47: =$F47*V$2 ->  | I47: =$F47*W$2 ->  | M47: =SUM(F47:I47) ->  | N47: =M47*(1+$U$2) ->  | P47: 0 | Q47: =P47*'highlevel Pack A'!#REF! -> 
B48: ='Pack A'!#REF! ->  | C48: pcs | D48: ='Data Sheet'!Z25 -> 376 | E48: =(Q48/($X$2+1))/('Data Sheet'!Z25) ->  | K48: =M48/D48 ->  | O48: ='Pack A'!#REF! ->  | Q48: =P48*'highlevel Pack A'!#REF! -> 
B49: ='Pack A'!#REF! ->  | C49: 10k | D49: 40 | E49: =(Q49/($X$2+1))/40 ->  | F49: =E49*D49 ->  | G49: =$F49*T$2 ->  | H49: =$F49*V$2 ->  | I49: =$F49*W$2 ->  | K49: =M49/D49 ->  | N49: =M49*(1+$U$2) ->  | O49: ='Pack A'!#REF! ->  | Q49: =P49*'highlevel Pack A'!#REF! -> 
B50: ='Pack A'!#REF! ->  | E50: =Q50*$Y$2 ->  | F50: =E50*D50 ->  | G50: =$Q50*T$2 ->  | H50: =$Q50*V$2 ->  | I50: =$Q50*W$2 ->  | N50: =M50*(1+$U$2) ->  | O50: ='Pack A'!#REF! ->  | Q50: =P50*'highlevel Pack A'!#REF! -> 
A51: ='Pack A'!#REF! ->  | B51: ='Pack A'!#REF! ->  | C51: l.s. | D51: 1 | E51: =(Q51/($X$4+1)) ->  | G51: =$F51*T$4 ->  | H51: =$F51*V$4 ->  | I51: =$F51*W$4 ->  | N51: =M51*(1+$U$4) ->  | O51: ='Pack A'!#REF! ->  | Q51: =P51*'highlevel Pack A'!#REF! -> 
A52: ='Pack A'!#REF! ->  | B52: ='Pack A'!#REF! ->  | E52: =(Q52/($X$2+1)) ->  | F52: =E52*D52 ->  | G52: =$F52*T$4 ->  | H52: =$F52*V$4 ->  | I52: =$F52*W$4 ->  | N52: =M52*(1+$U$2) ->  | P52: 0 | Q52: =P52*'highlevel Pack A'!#REF! -> 
B53: ='Pack A'!#REF! ->  | C53: l.s. | D53: 1 | E53: =(Q53/($X$4+1)) ->  | N53: =M53*113% ->  | O53: ='Pack A'!#REF! ->  | Q53: =P53*'highlevel Pack A'!#REF! -> 
B54: ='Pack A'!#REF! ->  | C54: l.s. | D54: 1 | E54: =(Q54/($X$4+1)) ->  | N54: =M54*113% ->  | O54: ='Pack A'!#REF! ->  | Q54: =P54*'highlevel Pack A'!#REF! -> 
A55: ='Pack A'!#REF! ->  | B55: ='Pack A'!#REF! ->  | E55: =Q55*$Y$3 -> 0 | F55: =E55*D55 -> 0 | G55: =$Q55*T$3 -> 0 | H55: =$Q55*V$3 -> 0 | I55: =$Q55*W$3 -> 0 | M55: 0 | N55: =M55*(1+$U$2) -> 0
A56: ='Pack A'!#REF! ->  | B56: ='Pack A'!#REF! -> 
B57: ='Pack A'!#REF! -> 
B58: ='Pack A'!#REF! -> 
B59: ='Pack A'!#REF! -> 
B60: ='Pack A'!#REF! -> 
B61: ='Pack A'!#REF! -> 
B62: ='Pack A'!#REF! -> 
B63: ='Pack A'!#REF! -> 
B64: ='Pack A'!#REF! -> 
B65: ='Pack A'!#REF! -> 
B66: ='Pack A'!#REF! -> 
B67: ='Pack A'!#REF! -> 
B68: ='Pack A'!#REF! -> 
A69: ='Pack A'!#REF! ->  | B69: ='Pack A'!#REF! ->  | G69: ='Pack A'!#REF! ->  | M69: =141235343.343883-61471.8 -> 141173871.5 | N69: =M69*(1+$U$2) -> 165173429.7

Sheet Cost Breakdown Pack B L2 (hidden)
H1: 2019-10-28 | V1: Cd | W1: ST | X1: IT | Y1: ACD
A2: IITS Green Line Package B Engineer's Estimate Breakdown | T2: HW tax & Duties | V2: 0.03 | W2: 0.17 | X2: 0.055 | Y2: 0.02 | Z2: =SUM(V2:Y2)-W2 -> 0.105 | AA2: =100%-Z2 -> 0.895
T3: SW Tax & duties | V3: 0.11 | W3: 0.17 | X3: 0.055 | Y3: 0.02 | Z3: =SUM(V3:Y3)-W3 -> 0.185 | AA3: =100%-Z3 -> 0.815
T4: Services | V4: 0 | W4: 0.13 | X4: 0.055 | Y4: 0 | Z4: =SUM(V4:Y4)-W4 -> 0.055 | AA4: =100%-Z4 -> 0.945
T5: Display Equipment | V5: 0.03 | W5: 0.17 | X5: 0.055 | Y5: 0.02 | Z5: =SUM(V5:Y5)-W5 -> 0.105 | AA5: =100%-Z5 -> 0.895
T6: Camera | V6: 0.11 | W6: 0.17 | X6: 0.055 | Y6: 0.02 | Z6: 0.185 | AA6: 0.815
T7: Local | V7: 0 | W7: 0.17 | X7: 0.045 | Y7: 0 | Z7: =SUM(V7:Y7)-W7 -> 0.045 | AA7: =100%-Z7 -> 0.955
T8: Network Equipment | V8: 0.03 | W8: 0.17 | X8: 0.055 | Y8: 0.02 | Z8: =SUM(V8:Y8)-W8 -> 0.105 | AA8: 0.895
A9: Pos. | C9: A or O: chosen | D9: Item description | E9: unit | F9: no. | G9: cost per item | H9: Amount | I9: Taxes and duties | O9: Total Amount without GST | P9: Total Amount with GST
I10: CD | J10: IT | K10: ACD | L10: other | M10: unit cost without GST | N10: unit cost with GST | O10: =SUM(O13:O194) ->  | P10: =SUM(P13:P194) -> 
A11: ='Pack B'!F6 -> Title 1 | B11: Level4 Operation Control Centre (OCC) | R11: =S11 -> 0 | S11: ='highlevel Pack B'!E6 -> 0
B12: Hardware for Operation Control and Management | Q12: ='Pack A'!AC7 -> 0 | R12: =S12 ->  | S12: ='highlevel Pack B'!#REF! -> 
A13: ='Pack B'!#REF! ->  | D13: furniture (desks and Chairs) for admins and managers (suitable for 2 screens) including installation and all necessary intergration (breakdown to be attached in the Proposal) | E13: pcs. | F13: ='Data Sheet'!F119 -> 30 | G13: =(S13/($Z$7+1))/F13 ->  | H13: =G13*F13 ->  | I13: =$H13*V$7 ->  | J13: =$H13*X$7 ->  | K13: =$H13*Y$7 ->  | M13: =O13/F13 ->  | N13: =P13/F13 ->  | O13: =SUM(H13:K13) ->  | P13: =O13*(1+$W$7) ->  | Q13: ='Pack A'!#REF! ->  | S13: ='Pack B'!#REF! -> 
A14: ='Pack B'!#REF! ->  | D14: Video-wall, 55” screens in 5x5 configuration, total size of video-wall (WxH) 6 x 3.4 meters aprox, Brightness minimum 700 cd/m2, bezel width less than 2mm, resolution of each screen minimum 1920x1080, Anti-Glare, minimum viewing angle 178x178 degrees, contrast ratio minimum 1200:1, response time less than or equal to 8 ms. with backoffice servers (including all hardware components, installation | E14: l.s. | F14: 1 | G14: =(S14/($Z$5+1))/F14 ->  | H14: =G14*F14 ->  | I14: =$H14*V$5 ->  | J14: =$H14*X$5 ->  | K14: =$H14*Y$5 ->  | M14: =O14/F14 ->  | N14: =P14/F14 ->  | O14: =SUM(H14:K14) ->  | P14: =O14*(1+$W$5) ->  | S14: ='Pack B'!#REF! -> 
A15: ='Pack B'!#REF! ->  | D15: Video-wall, 55” screens in 3x3 configuration, total size of video-wall (WxH) 3.64 x 1.37 meters aprox, Brightness minimum 700 cd/m2, bezel width less than 2mm, resolution of each screen minimum 1920x1080, Anti-Glare, minimum viewing angle 178x178 degrees, contrast ratio minimum 1200:1, response time less than or equal to 8 ms. with backoffice servers (including all hardware components, installation | E15: l.s. | F15: 1 | G15: =(S15/($Z$5+1))/F15 ->  | I15: =$H15*V$5 ->  | J15: =$H15*X$5 ->  | K15: =$H15*Y$5 ->  | P15: =O15*(1+$W$5) ->  | Q15: ='Pack A'!#REF! ->  | S15: ='Pack B'!#REF! -> 
A16: ='Pack B'!#REF! ->  | D16: Videowall 4x5 and 3x5 DLP with backoffice servers (including all hardware components, installation components, works, software, implementation in OCC for 24 cubes) | E16: l.s. | F16: 1 | M16: 0 | N16: 0 | P16: =O16*(1+$W$2) -> 0 | Q16: ='Pack A'!#REF! ->  | S16: ='Pack B'!#REF! -> 
A17: ='Pack B'!#REF! ->  | D17: Training room videoscreen set-up (including all hardware components, installation components, works, software, implementation in OCC, silverscreen and projector) | E17: l.s. | F17: 1 | G17: =(S17/($Z$5+1))/F17 ->  | I17: =$H17*V$5 ->  | J17: =$H17*X$5 ->  | K17: =$H17*Y$5 ->  | P17: =O17*(1+$W$5) ->  | Q17: ='Pack A'!#REF! ->  | S17: ='Pack B'!#REF! -> 
A18: ='Pack B'!#REF! ->  | D18: furniture (large desks and Chairs) for dispatchers desk suitable for 3 screens, 24/7 operation suitable) including installation and all necessary intergration (breakdown to be attached in the Proposal) | E18: l.s. | F18: ='Data Sheet'!F120 -> 34 | G18: =(S18/($Z$7+1))/F18 ->  | I18: =$H18*V$7 ->  | J18: =$H18*X$7 ->  | K18: =$H18*Y$7 ->  | P18: =O18*(1+$W$7) ->  | Q18: ='Pack A'!#REF! ->  | S18: ='Pack B'!#REF! -> 
A19: ='Pack B'!#REF! ->  | B19: Software for Operation Control & Management (Company license for BRT) | Q19: ='Pack A'!#REF! ->  | S19: ='Pack B'!#REF! -> 
A20: ='Pack B'!#REF! ->  | B20: =IF(#REF!<>"","a",IF(#REF!<>"","o","")) ->  | D20: Central software for LCD Videowall incl interfaces and CCTV licenses | E20: l.s. | F20: 1 | G20: =(S20/($Z$3+1))/F20 ->  | I20: =$H20*V$3 ->  | J20: =$H20*X$3 ->  | K20: =$H20*Y$3 ->  | P20: =O20*(1+$W$3) ->  | Q20: ='Pack A'!#REF! ->  | S20: ='Pack B'!#REF! -> 
A21: ='Pack B'!#REF! ->  | B21: =IF(#REF!<>"","a",IF(#REF!<>"","o","")) ->  | D21: Central software for DLP Videowall incl interfaces and CCTV licenses | E21: l.s. | F21: 1 | M21: 0 | N21: 0 | P21: 0 | S21: ='Pack B'!#REF! -> 
A22: ='Pack B'!#REF! ->  | B22: =IF(#REF!<>"","a",IF(#REF!<>"","o","")) ->  | D22: Remote Access software client | E22: l.s. | F22: 1 | G22: =(S22/($Z$3+1))/F22 ->  | I22: =$H22*V$3 ->  | J22: =$H22*X$3 ->  | K22: =$H22*Y$3 ->  | P22: =O22*(1+$W$3) ->  | Q22: ='Pack A'!#REF! ->  | R22: =S22 ->  | S22: ='Pack B'!#REF! -> 
A23: ='Pack B'!#REF! ->  | B23: Level3 Energy Management System for Green Line | Q23: ='Pack A'!#REF! ->  | S23: ='Pack B'!#REF! -> 
A24: ='Pack B'!#REF! ->  | B24: Hardware-Energy Management Level 3 Green Line | S24: ='Pack B'!#REF! -> 
A25: ='Pack B'!#REF! ->  | B25: =IF(#REF!<>"","a",IF(#REF!<>"","o","")) ->  | D25: Energy Management Server System online functions incl. Reporting system, Back up System, Archiving System and all necessary parts except from the items listed below | E25: l.s. | F25: 1 | G25: =(S25/($Z$2+1))/F25 ->  | I25: =$H25*V$2 ->  | J25: =$H25*X$2 ->  | K25: =$H25*Y$2 ->  | S25: ='Pack B'!#REF! -> 
A26: ='Pack B'!#REF! ->  | B26: =IF(#REF!<>"","a",IF(#REF!<>"","o","")) ->  | D26: Workstation for Energy Management Server System (incl. all hardware components, cabling, incidentals) | E26: pcs. | F26: 1 | S26: ='Pack B'!#REF! -> 
A27: ='Pack B'!#REF! ->  | B27: =IF(#REF!<>"","a",IF(#REF!<>"","o","")) ->  | D27: UPS for Energy Management Server System incl. all necessary parts | E27: pcs. | F27: 1 | S27: ='Pack B'!#REF! -> 
A28: ='Pack B'!F8 -> 1.001 | B28: =IF(#REF!<>"","a",IF(#REF!<>"","o","")) ->  | D28: UPS for workstations | E28: pcs. | F28: 1 | G28: 0 | H28: 0 | I28: 0 | J28: 0 | K28: 0 | M28: 0 | N28: 0 | O28: 0 | P28: 0 | S28: ='Pack B'!O8 -> 0
A29: ='Pack B'!#REF! ->  | B29: =IF(#REF!<>"","a",IF(#REF!<>"","o","")) ->  | D29: Smart Energy Analyzers | E29: pcs. | F29: ='Data Sheet'!Z50 -> 54 | S29: ='Pack B'!#REF! -> 
A30: ='Pack B'!#REF! ->  | B30: =IF(#REF!<>"","a",IF(#REF!<>"","o","")) ->  | D30: CTs for Smart Energy Analyzers, L.T. with required current ratio as per site requirement | E30: set | F30: =F29 -> 54 | M30: 0 | N30: 0 | P30: 0 | S30: ='Pack B'!#REF! -> 
A31: ='Pack B'!#REF! ->  | B31: =IF(#REF!<>"","a",IF(#REF!<>"","o","")) ->  | D31: All necessary Installations work, Integrations and Coordination related to the above mentioned EM items | E31: l.s. | F31: 1 | S31: ='Pack B'!#REF! -> 
A32: ='Pack B'!#REF! ->  | B32: Software-Energy Management System L3 Green Line(all company licenses) | S32: ='Pack B'!#REF! -> 
A33: ='Pack B'!#REF! ->  | B33: =IF(#REF!<>"","a",IF(#REF!<>"","o","")) ->  | D33: Smart Energy Management software including head-end software for data collection from Energy Analyzers, Data management software and visualization and reporting software | E33: pcs. | F33: 1 | G33: =(S33/($Z$3+1))/F33 ->  | I33: =$H33*V$3 ->  | J33: =$H33*X$3 ->  | K33: =$H33*Y$3 ->  | P33: =O33*(1+$W$3) ->  | S33: ='Pack B'!#REF! -> 
A34: ='Pack B'!#REF! ->  | B34: =IF(#REF!<>"","a",IF(#REF!<>"","o","")) ->  | D34: Operating system for Energy Management Server | E34: pcs. | F34: 1 | G34: =(S34/($Z$3+1))/F34 ->  | I34: =$H34*V$3 ->  | J34: =$H34*X$3 ->  | K34: =$H34*Y$3 ->  | P34: =O34*(1+$W$3) ->  | S34: ='Pack B'!#REF! -> 
A35: ='Pack B'!#REF! ->  | B35: =IF(#REF!<>"","a",IF(#REF!<>"","o","")) ->  | D35: Database Server Software for Energy Management System | E35: pcs. | F35: 1 | P35: =O35*(1+$W$3) ->  | S35: ='Pack B'!#REF! -> 
A36: ='Pack B'!#REF! ->  | B36: =IF(#REF!<>"","a",IF(#REF!<>"","o","")) ->  | D36: additional order: Interface to further BIAS L4 system | E36: l. s. | F36: 1 | P36: =O36*(1+$W$3) ->  | S36: ='Pack B'!#REF! -> 
A37: ='Pack B'!#REF! ->  | B37: Level 2: OCC Data Network (LAN): | S37: ='Pack B'!#REF! -> 
A38: ='Pack B'!#REF! ->  | B38: Hardware for OCC Data Network (LAN): | S38: ='Pack B'!#REF! -> 
A39: ='Pack B'!#REF! ->  | B39: =IF(#REF!<>"","a",IF(#REF!<>"","o","")) ->  | D39: Supply and Installation of Core Switch 48 port (Manageable). 48 SFP+ 10G ports and atleast four QSFP ports. Atleast 2.56 Tbps thoroughput. Witth separate Control and Data Planes. Dual hot-swappable AC or DC power supplies to provide 1+1 redundancy. hot-swappable fan trays. Support for network virtualization, LAN and SAN | E39: pcs. | F39: 2 | G39: =(S39/($Z$8+1))/F39 ->  | I39: =$H39*V$8 ->  | J39: =$H39*X$8 ->  | K39: =$H39*Y$8 ->  | P39: =O39*(1+$W$8) ->  | S39: ='Pack B'!#REF! -> 
A40: ='Pack B'!#REF! ->  | B40: =IF(#REF!<>"","a",IF(#REF!<>"","o","")) ->  | D40: Supply and Installation of PoE Switch with 16 full power PoE ports, minimum PoE budget of 320 Watts, 10/100/1000 Mbps ports with 2xcombo SFP Slots loaded, Rack-mountable, or as per requirement. | E40: pcs. | F40: 3 | G40: =(S40/($Z$8+1))/F40 ->  | H40: =G40*F40 ->  | I40: =$H40*V$8 ->  | J40: =$H40*X$8 ->  | K40: =$H40*Y$8 ->  | S40: ='Pack B'!#REF! -> 
A41: ='Pack B'!#REF! ->  | B41: =IF(#REF!<>"","a",IF(#REF!<>"","o","")) ->  | D41: Supply and Installation of Ethernet Switch 24-port, L3 Fully Manageable, nonblocking architecture, Switch having 24x10/100/1000Base-T ports with 2 SFP+ 10 GB Uplink ports lRack-mountable, min 92 Gbps switching capacity, 16k MAC Adresses, 11. Support for Control Plane Prioritization (CPP) with dynamic link failover, support SNMP, SSH and SSL for secure management, with AMF MIB and SNMP traps; | E41: pcs. | F41: 12 | S41: ='Pack B'!#REF! -> 
A42: ='Pack B'!#REF! ->  | B42: =IF(#REF!<>"","a",IF(#REF!<>"","o","")) ->  | D42: Supply and Installation of 42U Rack, Floor Standing, with lockable glass door, fine powder coated with fans and trays, must be imported with authorized distributor presence, must have rack mount PDU, in the package. with all accessories. | E42: pcs. | F42: 8 | S42: ='Pack B'!#REF! -> 
A43: ='Pack B'!#REF! ->  | B43: =IF(#REF!<>"","a",IF(#REF!<>"","o","")) ->  | D43: Supply and Installation of 9U Rack, wall mounted, with lockable glass door, fine powder coated with fans and trays, must be imported with authorized distributor presence, must have rack mount PDU, in the package. with all accessories. | E43: pcs. | F43: 5 | S43: ='Pack B'!#REF! -> 
A44: ='Pack B'!#REF! ->  | B44: =IF(#REF!<>"","a",IF(#REF!<>"","o","")) ->  | D44: Telco Rack 42U | E44: pcs. | F44: 1 | S44: ='Pack B'!#REF! -> 
A45: ='Pack B'!#REF! ->  | B45: =IF(#REF!<>"","a",IF(#REF!<>"","o","")) ->  | D45: Supplying and laying of CAT6A UTP Ethernet Cable 3M, Schnieder or equivalent, 23AWG (0.57 mm), CM rated and UL listed, (Blue Color), NSI,TIA,EIA, ISO Compliance-1G Support for 100meter and 10G support for 55 meter cables through PVC conduit / cable tray as shown in the drawing or otherwise as directed, from server to SWITCH/ROUTER to Computer Data Sockets, as required to be completed in all respect. | E45: mtrs | F45: 16730 | S45: ='Pack B'!#REF! -> 
A46: ='Pack B'!#REF! ->  | B46: =IF(#REF!<>"","a",IF(#REF!<>"","o","")) ->  | D46: Supply and installation of Duplex data and Voice outlet on wall / furniture / partition with CAT6A UTP I/O, face plate and back box, as shown in the drawing or as per requirement. | E46: pcs. | F46: 150 | S46: ='Pack B'!#REF! -> 
A47: ='Pack B'!#REF! ->  | B47: =IF(#REF!<>"","a",IF(#REF!<>"","o","")) ->  | D47: Supply and installation of Patch Panel CAT6A - 48 Port (fully loaded) with CAT6 I/O, with front/rear cable management ANSI, TIA, EIA, ISO Compliance Flame retardant –Must be UL Listed and should have side covers on cage nuts. | E47: pcs. | F47: 2 | S47: ='Pack B'!#REF! -> 
A48: ='Pack B'!#REF! ->  | B48: =IF(#REF!<>"","a",IF(#REF!<>"","o","")) ->  | D48: Supply and installation of Patch cord CAT6 UTP (1 meter) Machine punched, Stranded, ANSI,TIA,EIA, ISO Compliance with Gold over nickel plated contacts in Connector, must have anti snag mechanism- Must be UL Listed, from core switch to LAN Patch panel. | E48: pcs. | F48: 100 | S48: ='Pack B'!#REF! -> 
A49: ='Pack B'!#REF! ->  | B49: =IF(#REF!<>"","a",IF(#REF!<>"","o","")) ->  | D49: Supply and installation of Patch cord CAT6 UTP (3 meter) Machine punched, Stranded, ANSI,TIA,EIA, ISO Compliance with Gold over nickel plated contacts in Connector, must have anti snag mechanism- Must be UL Listed, from wall outlet to devices. | E49: pcs. | F49: 100 | S49: ='Pack B'!#REF! -> 
A50: ='Pack B'!#REF! ->  | B50: =IF(#REF!<>"","a",IF(#REF!<>"","o","")) ->  | D50: Termination and Labeling of CAT 6A UTP cable on both end. | E50: job. | F50: 1 | G50: =(S50/($Z$4+1))/F50 ->  | I50: =$H50*V$4 ->  | J50: =$H50*X$4 ->  | K50: =$H50*Y$4 ->  | P50: =O50*(1+$W$4) ->  | S50: ='Pack B'!#REF! -> 
A51: ='Pack B'!#REF! ->  | B51: =IF(#REF!<>"","a",IF(#REF!<>"","o","")) ->  | D51: Testing and commissioning of copper nodes with Fluke Network devices. Including submission of detailed test reports. | E51: job. | F51: 1 | G51: =(S51/($Z$4+1))/F51 ->  | H51: =G51*F51 ->  | I51: =$H51*V$4 ->  | J51: =$H51*X$4 ->  | K51: =$H51*Y$4 ->  | P51: =O51*(1+$W$4) ->  | S51: ='Pack B'!#REF! -> 
A52: ='Pack B'!#REF! ->  | B52: =IF(#REF!<>"","a",IF(#REF!<>"","o","")) ->  | D52: Network security Appliance | E52: pcs. | F52: 1 | G52: =(S52/($Z$8+1))/F52 ->  | I52: =$H52*V$8 ->  | J52: =$H52*X$8 ->  | K52: =$H52*Y$8 ->  | P52: =O52*(1+$W$8) ->  | S52: ='Pack B'!#REF! -> 
A53: ='Pack B'!#REF! ->  | B53: =IF(#REF!<>"","a",IF(#REF!<>"","o","")) ->  | D53: IP PABX No of station:256 | E53: pcs. | F53: 1 | G53: =(S53/($Z$8+1))/F53 ->  | H53: =G53*F53 ->  | I53: =$H53*V$8 ->  | J53: =$H53*X$8 ->  | K53: =$H53*Y$8 ->  | P53: =O53*(1+$W$8) ->  | S53: ='Pack B'!#REF! -> 
A54: ='Pack B'!#REF! ->  | B54: =IF(#REF!<>"","a",IF(#REF!<>"","o","")) ->  | D54: IP Telephone | E54: pcs. | F54: 100 | P54: =O54*(1+$W$8) ->  | S54: ='Pack B'!#REF! -> 
A55: ='Pack B'!#REF! ->  | B55: =IF(#REF!<>"","a",IF(#REF!<>"","o","")) ->  | D55: any additional items | E55: l.s. | F55: 1 | P55: =O55*(1+$W$8) ->  | S55: ='Pack B'!#REF! -> 
A56: ='Pack B'!#REF! ->  | B56: Level 2: Bus Depot Data Network (LAN) Green Line | S56: ='Pack B'!#REF! -> 
A57: ='Pack B'!#REF! ->  | B57: Hardware-Bus Depot Data Network (LAN): | S57: ='Pack B'!#REF! -> 
A58: ='Pack B'!#REF! ->  | B58: =IF(#REF!<>"","a",IF(#REF!<>"","o","")) ->  | D58: Supply and Installation of Core Switch 48 port (Manageable). 48 SFP+ 10G ports and atleast four QSFP ports. Atleast 2.56 Tbps thoroughput. Witth separate Control and Data Planes. Dual hot-swappable AC or DC power supplies to provide 1+1 redundancy. hot-swappable fan trays. Support for network virtualization. | E58: pcs. | F58: 1 | G58: =(S58/($Z$8+1))/F58 ->  | I58: =$H58*V$8 ->  | J58: =$H58*X$8 ->  | K58: =$H58*Y$8 ->  | P58: =O58*(1+$W$8) ->  | S58: ='Pack B'!#REF! -> 
A59: ='Pack B'!#REF! ->  | B59: =IF(#REF!<>"","a",IF(#REF!<>"","o","")) ->  | D59: Supply and Installation of Ethernet Switch 24-port, L3 Fully Manageable, nonblocking architecture, Switch having 24x10/100/1000Base-T ports with 2 SFP+ 10 GB Uplink ports lRack-mountable, min 92 Gbps switching capacity, 16k MAC Adresses, 11. Support for Control Plane Prioritization (CPP) with dynamic link failover, support SNMP, SSH and SSL for secure management, with AMF MIB and SNMP traps; | E59: pcs. | F59: 6 | G59: =(S59/($Z$8+1))/F59 ->  | H59: =G59*F59 ->  | I59: =$H59*V$8 ->  | J59: =$H59*X$8 ->  | K59: =$H59*Y$8 ->  | P59: =O59*(1+$W$8) ->  | S59: ='Pack B'!#REF! -> 
A60: ='Pack B'!#REF! ->  | B60: =IF(#REF!<>"","a",IF(#REF!<>"","o","")) ->  | D60: Supply and Installation of PoE Switch with 16 full power PoE ports, minimum PoE budget of 320 Watts, 10/100/1000 Mbps ports with 2xcombo SFP Slots loaded, Rack-mountable, or as per requirement. | E60: pcs. | F60: 2 | S60: ='Pack B'!#REF! -> 
A61: ='Pack B'!#REF! ->  | B61: =IF(#REF!<>"","a",IF(#REF!<>"","o","")) ->  | D61: Supply and Installation of 42U Rack, Floor Standing, with lockable glass door, fine powder coated with fans and trays, must be imported with authorized distributor presence, must have rack mount PDU, in the package. with all accessories. | E61: pcs. | F61: 3 | S61: ='Pack B'!#REF! -> 
A62: ='Pack B'!#REF! ->  | B62: =IF(#REF!<>"","a",IF(#REF!<>"","o","")) ->  | D62: Supply and Installation of 9U Rack, wall mounted, with lockable glass door, fine powder coated with fans and trays, must be imported with authorized distributor presence, must have rack mount PDU, in the package. with all accessories. | E62: pcs. | F62: 2 | S62: ='Pack B'!#REF! -> 
A63: ='Pack B'!#REF! ->  | B63: =IF(#REF!<>"","a",IF(#REF!<>"","o","")) ->  | D63: Telco Rack 42U | E63: pcs. | F63: 1 | S63: ='Pack B'!#REF! -> 
A64: ='Pack B'!#REF! ->  | B64: =IF(#REF!<>"","a",IF(#REF!<>"","o","")) ->  | D64: Supplying and laying of CAT6A UTP Ethernet Cable 23AWG (0.57 mm), CM rated and UL listed, (Blue Color), NSI,TIA,EIA, ISO Compliance-1G Support for 100meter and 10G support for 55 meter cables through PVC conduit / cable tray as shown in the drawing or otherwise as directed by the consultant, from server to SWITCH/ROUTER to Computer Data Sockets, as required to be completed in all respect. | E64: mtrs | F64: 3000 | S64: ='Pack B'!#REF! -> 
A65: ='Pack B'!#REF! ->  | B65: =IF(#REF!<>"","a",IF(#REF!<>"","o","")) ->  | D65: Supply and installation of Duplex data and Voice outlet on wall / furniture / partition with CAT6A UTP I/O, face plate and back box, as shown in the drawing or as per requirement. | E65: pcs. | F65: 75 | S65: ='Pack B'!#REF! -> 
A66: ='Pack B'!#REF! ->  | B66: =IF(#REF!<>"","a",IF(#REF!<>"","o","")) ->  | D66: Supply and installation of Patch Panel CAT6A 48 Port (fully loaded) with CAT6 I/O, with front/rear cable management ANSI, TIA, EIA, ISO Compliance Flame retardant –Must be UL Listed and should have side covers on cage nuts. | E66: pcs. | F66: 2 | S66: ='Pack B'!#REF! -> 
A67: ='Pack B'!#REF! ->  | B67: =IF(#REF!<>"","a",IF(#REF!<>"","o","")) ->  | D67: Supply and installation of Patch Panel CAT6A 24 Port (fully loaded) with CAT6 I/O, with front/rear cable management ANSI, TIA, EIA, ISO Compliance Flame retardant –Must be UL Listed and should have side covers on cage nuts. | E67: pcs. | F67: 1 | G67: =(S67/($Z$8+1))/F67 ->  | I67: =$H67*V$8 ->  | J67: =$H67*X$8 ->  | K67: =$H67*Y$8 ->  | S67: ='Pack B'!#REF! -> 
A68: ='Pack B'!#REF! ->  | B68: =IF(#REF!<>"","a",IF(#REF!<>"","o","")) ->  | D68: Supply of Patch cord CAT6A UTP (1 meter) Machine punched, Stranded, ANSI,TIA,EIA, ISO Compliance with Gold over nickel plated contacts in Connector, must have anti snag mechanism- Must be UL Listed, from core switch to LAN Patch panel. | E68: pcs. | F68: 35 | G68: =(S68/($Z$8+1))/F68 ->  | H68: =G68*F68 ->  | I68: =$H68*V$8 ->  | J68: =$H68*X$8 ->  | K68: =$H68*Y$8 ->  | S68: ='Pack B'!#REF! -> 
A69: ='Pack B'!#REF! ->  | B69: =IF(#REF!<>"","a",IF(#REF!<>"","o","")) ->  | D69: Supply of Patch cord CAT6A UTP (3 meter) Machine punched, Stranded, ANSI,TIA,EIA, ISO Compliance with Gold over nickel plated contacts in Connector, must have anti snag mechanism- Must be UL Listed, from wall outlet to devices. | E69: pcs. | F69: 40 | S69: ='Pack B'!#REF! -> 
A70: ='Pack B'!#REF! ->  | B70: =IF(#REF!<>"","a",IF(#REF!<>"","o","")) ->  | D70: Termination and Labeling of CAT6A UTP cable on both end. | E70: job. | F70: 1 | G70: =(S70/($Z$4+1))/F70 ->  | I70: =$H70*V$4 ->  | J70: =$H70*X$4 ->  | K70: =$H70*Y$4 ->  | P70: =O70*(1+$W$4) ->  | S70: ='Pack B'!#REF! -> 
A71: ='Pack B'!#REF! ->  | B71: =IF(#REF!<>"","a",IF(#REF!<>"","o","")) ->  | D71: Testing and commissioning of copper nodes with Fluke Network devices. Including submission of detailed test reports. | E71: job. | F71: 1 | G71: =(S71/($Z$4+1))/F71 ->  | H71: =G71*F71 ->  | I71: =$H71*V$4 ->  | J71: =$H71*X$4 ->  | K71: =$H71*Y$4 ->  | P71: =O71*(1+$W$4) ->  | S71: ='Pack B'!#REF! -> 
A72: ='Pack B'!F9 -> 1.002 | B72: =IF(#REF!<>"","a",IF(#REF!<>"","o","")) ->  | D72: UPS 5 kVA | E72: pcs. | F72: 1 | G72: 0 | H72: 0 | I72: 0 | J72: 0 | K72: 0 | M72: 0 | N72: 0 | O72: 0 | P72: 0 | S72: ='Pack B'!O9 -> 0
A73: ='Pack B'!F10 -> 1.003 | B73: =IF(#REF!<>"","a",IF(#REF!<>"","o","")) ->  | D73: UPS 2 KVA | E73: pcs. | F73: 1 | G73: 0 | H73: 0 | I73: 0 | J73: 0 | K73: 0 | M73: 0 | N73: 0 | O73: 0 | P73: 0 | S73: ='Pack B'!O10 -> 0
A74: ='Pack B'!#REF! ->  | B74: =IF(#REF!<>"","a",IF(#REF!<>"","o","")) ->  | D74: Network security Appliance | E74: pcs. | F74: 1 | G74: =(S74/($Z$8+1))/F74 ->  | I74: =$H74*V$8 ->  | J74: =$H74*X$8 ->  | K74: =$H74*Y$8 ->  | P74: =O74*(1+$W$8) ->  | S74: ='Pack B'!#REF! -> 
A75: ='Pack B'!#REF! ->  | B75: =IF(#REF!<>"","a",IF(#REF!<>"","o","")) ->  | D75: any additional items | E75: l.s. | F75: 1 | P75: =O75*(1+$W$8) ->  | S75: ='Pack B'!#REF! -> 
A76: ='Pack B'!#REF! ->  | B76: Level2: Fiber Optic Backbone Switched Ring Network (OCC to Stations) Green Line: | S76: ='Pack B'!#REF! -> 
A77: ='Pack B'!#REF! ->  | B77: Hardware-Fiber Optic Backbone Network (OCC to Stations): | S77: ='Pack B'!#REF! -> 
A78: ='Pack B'!#REF! ->  | B78: =IF(#REF!<>"","a",IF(#REF!<>"","o","")) ->  | D78: Detailed network design of Switched ring network with modular design capable to carry 40Gbps of traffic in redundant architecture, and scalable to multiple of 40Gbps to integrate future lines | E78: set | F78: 1 | G78: =(S78/($Z$8+1))/F78 ->  | H78: =G78*F78 ->  | I78: =$H78*V$8 ->  | J78: =$H78*X$8 ->  | K78: =$H78*Y$8 ->  | M78: =O78/F78 ->  | N78: =P78/F78 ->  | O78: =SUM(H78:K78) ->  | P78: =O78*(1+$W$8) ->  | S78: ='Pack B'!#REF! -> 
A79: ='Pack B'!#REF! ->  | B79: =IF(#REF!<>"","a",IF(#REF!<>"","o","")) ->  | D79: OCC and Depo Main Switches Supply, Installation, Testing & Commissioning of Ethernet Switch with (24 x 10 GE SFP+, 2 x 40 GE QSFP+ ports) + (4x 40 GE QSFP+ on Expansion Slot) | E79: pcs. | F79: 4 | G79: =(S79/($Z$8+1))/F79 ->  | H79: =G79*F79 ->  | I79: =$H79*V$8 ->  | J79: =$H79*X$8 ->  | K79: =$H79*Y$8 ->  | O79: =SUM(H79:K79) ->  | P79: =O79*(1+$W$8) ->  | S79: ='Pack B'!#REF! -> 
A80: ='Pack B'!#REF! ->  | B80: =IF(#REF!<>"","a",IF(#REF!<>"","o","")) ->  | D80: Outer Ring/Core 40G Ring Switches at Stations Network Switch with 24 x 10 GE SFP+, 2 x 40 GE QSFP+ ports | E80: pcs. | F80: 6 | S80: ='Pack B'!#REF! -> 
A81: ='Pack B'!#REF! ->  | D81: Supply, Installation, Testing & Commissioning of Stations/Sub 10G Ring Switches Network Switches with 28 x 10/100/1,000 Base-T Ethernet ports, 4 x combo 100/1,000 Base-X SFP ports, and 4 x 10G SFP+ ports) | E81: pcs. | F81: 24 | S81: ='Pack B'!#REF! -> 
A82: ='Pack B'!#REF! ->  | B82: =IF(#REF!<>"","a",IF(#REF!<>"","o","")) ->  | D82: Supply, Installation, Testing & Commissioning of Modules for Outer Ring/Core 40G Ring 40GBASE-LR4 10km QSFP+ Optical Transceiver | F82: 18 | S82: ='Pack B'!#REF! -> 
A83: ='Pack B'!#REF! ->  | D83: Supply, Installation, Testing & Commissioning of Modules for OCC - Depo Core connectivity 40GBASE-ER4 Multirate 40km QSFP+ Optical Transceiver | E83: pcs. | F83: 6 | S83: ='Pack B'!#REF! -> 
A84: ='Pack B'!#REF! ->  | B84: =IF(#REF!<>"","a",IF(#REF!<>"","o","")) ->  | D84: Supply, Installation, Testing & Commissioning of Modules for Station/Sub Ring SFP-10G-LR Compatible 10GBASE-LR SFP+ 1310nm 10km DOM Transceiver | E84: pcs. | F84: 44 | S84: ='Pack B'!#REF! -> 
A85: ='Pack B'!#REF! ->  | D85: Supply, Installation, Testing & Commissioning of Modules for Stations local switches/corridor camera switches SFP-10G-SR Compatible 10GBASE-SR SFP+ 850nm 300m DOM Transceiver Module | E85: pcs. | F85: 60 | S85: ='Pack B'!#REF! -> 
A86: ='Pack B'!#REF! ->  | B86: =IF(#REF!<>"","a",IF(#REF!<>"","o","")) ->  | D86: SSupply, Pulling, Testing & Commissioning, of Optical Fiber Cable 48-Core Single Mode ITU-T (G.652 D), Duct type as per specifications with all necessary accessories as per requirement. | E86: meter. | F86: 55000 | S86: ='Pack B'!#REF! -> 
A87: ='Pack B'!#REF! ->  | B87: =IF(#REF!<>"","a",IF(#REF!<>"","o","")) ->  | D87: Fiber ODF-48‐Port, Supply, Install and Splice, 96‐Port, Rack Mount, Fiber Patch Panel Loaded with SC Duplex adapters, SC Pigtails, fiber adapter plate and Splice trays with all other accessories as per specifications. (For OCC and Depot) | E87: pcs. | F87: 4 | S87: ='Pack B'!#REF! -> 
A88: ='Pack B'!#REF! ->  | B88: =IF(#REF!<>"","a",IF(#REF!<>"","o","")) ->  | D88: Supply & Installation of 48-Core Horizontal Fiber Optic Splice Closure (Splicing as per site requirement) with 4 in-out cable ports, Water proof (protection grade is IP 68), suitable for Manhole (with all other wall mounting accessories). The closure can be opened again after being sealed and can be reused by changing the sealing material with all necessary accessories as per requirement. | E88: pcs. | F88: ='Data Sheet'!Z55 -> 52 | S88: ='Pack B'!#REF! -> 
A89: ='Pack B'!#REF! ->  | B89: =IF(#REF!<>"","a",IF(#REF!<>"","o","")) ->  | D89: Supply, Pulling, Testing & Commissioning of Optical Fiber Cable 12-Core Single Mode ITU-T (G.652 D), Duct Type as per specifications with all necessary accessories as per requirements. | E89: meter. | F89: 1000 | S89: ='Pack B'!#REF! -> 
A90: ='Pack B'!#REF! ->  | B90: =IF(#REF!<>"","a",IF(#REF!<>"","o","")) ->  | D90: Supply and Install Optical 3 meter LC/LC OM1 Duplex Fiber Optic Cable, 62.5/125 | E90: pcs. | F90: 600 | S90: ='Pack B'!#REF! -> 
A91: ='Pack B'!#REF! ->  | B91: =IF(#REF!<>"","a",IF(#REF!<>"","o","")) ->  | D91: Supply and Install 10 meter LC/LC Singlemode Duplex Fiber Optic Cable, 9/125 | E91: pcs. | F91: 1000 | S91: ='Pack B'!#REF! -> 
A92: ='Pack B'!#REF! ->  | B92: Hardware- Station Internal Fiber Data Network: | S92: ='Pack B'!#REF! -> 
A93: ='Pack B'!#REF! ->  | B93: =IF(#REF!<>"","a",IF(#REF!<>"","o","")) ->  | D93: Fiber ODF, Supply, Install and Splice, ODF-1U,12‐Port, Rack Mount, Fiber Patch Panel Loaded with SC Duplex adapters, SC Pigtails, fiber adapter plate and Splice trays with all other accessories as per specifications. | E93: pcs. | F93: ='Data Sheet'!Z56 -> 25 | G93: =(S93/($Z$8+1))/F93 ->  | H93: =G93*F93 ->  | I93: =$H93*V$8 ->  | J93: =$H93*X$8 ->  | K93: =$H93*Y$8 ->  | O93: =SUM(H93:K93) ->  | S93: ='Pack B'!#REF! -> 
A94: ='Pack B'!#REF! ->  | B94: =IF(#REF!<>"","a",IF(#REF!<>"","o","")) ->  | D94: Supply and Install 3 meter SC/LC OM1 Duplex Fiber Optic Cable, 62.5/125 | E94: pcs. | F94: 600 | S94: ='Pack B'!#REF! -> 
A95: ='Pack B'!#REF! ->  | B95: =IF(#REF!<>"","a",IF(#REF!<>"","o","")) ->  | D95: Supply and Install 10 meter SC/LC Singlemode Duplex Fiber Optic Cable, 9/125 | E95: pcs. | F95: 1000 | S95: ='Pack B'!#REF! -> 
A96: ='Pack B'!#REF! ->  | B96: =IF(#REF!<>"","a",IF(#REF!<>"","o","")) ->  | D96: Supply, Pulling, Testing & Commissioning of Optical Fiber Cable 6-Core Single Mode ITU-T (G.655), support 10 G, Armored, loose-tube, duct as per specifications with all necessary accessories as per requirement. | E96: pcs. | F96: ='Data Sheet'!Z58 -> 12500 | S96: ='Pack B'!#REF! -> 
A97: ='Pack B'!#REF! ->  | B97: =IF(#REF!<>"","a",IF(#REF!<>"","o","")) ->  | D97: Corridor CCTV Camera Fiber Network: Supply and Installation of Ethernet Switch48 x 10/100/1000 4 x 10 GE SFP+ | E97: pcs. | F97: ='Data Sheet'!Z59 -> 25 | S97: ='Pack B'!#REF! -> 
A98: ='Pack B'!#REF! ->  | B98: =IF(#REF!<>"","a",IF(#REF!<>"","o","")) ->  | D98: Supply and Installation of Industrial grade POE switch (Manageable) 2 x 10/100/1000Base-T to 2 x 100/1000Base-X Fiber (minimum), as per specifications and requirement (For CCTV Camera). | E98: pcs. | F98: ='Data Sheet'!Z60 -> 500 | S98: ='Pack B'!#REF! -> 
A99: ='Pack B'!#REF! ->  | B99: =IF(#REF!<>"","a",IF(#REF!<>"","o","")) ->  | D99: Supply and Installation of Modules for CCTV Industrial switches uplinks SFP-1G-LX Compatible 1000BASE-LX SFP 1310nm 10km DOM Transceiver Module | E99: pcs. | F99: ='Data Sheet'!Z61 -> 52 | S99: ='Pack B'!#REF! -> 
A100: ='Pack B'!#REF! ->  | B100: =IF(#REF!<>"","a",IF(#REF!<>"","o","")) ->  | D100: Supply, Pulling, Testing & Commissioning, of Optical Fiber Cable 12-Core Single Mode ITU-T (G.655), support 10 Gig, Armored, loose-tube, duct as per specifications with all necessary accessories as per requirement. | E100: mtr. | F100: ='Data Sheet'!Z62 -> 55875 | S100: ='Pack B'!#REF! -> 
A101: ='Pack B'!#REF! ->  | B101: =IF(#REF!<>"","a",IF(#REF!<>"","o","")) ->  | D101: Supply, Pulling, Testing & Commissioning, of Optical Fiber Cable 02-Core Single Mode ITU-T (G.655), support 10 Gig, Armored, loose-tube, duct as per specifications with all necessary accessories as per requirement. | E101: mtr. | F101: ='Data Sheet'!Z63 -> 5000 | S101: ='Pack B'!#REF! -> 
A102: ='Pack B'!#REF! ->  | B102: =IF(#REF!<>"","a",IF(#REF!<>"","o","")) ->  | D102: Fiber ODF-24‐Port, Supply, Install and Splice,1U,24‐Port, Rack Mount, Fiber Patch Panel Loaded with SC adapters, SC Pigtails, fiber adapter plate and Splice trays with all other accessories as per specifications and requirement. | E102: pcs. | F102: ='Data Sheet'!Z64 -> 33 | S102: ='Pack B'!#REF! -> 
A103: ='Pack B'!#REF! ->  | B103: =IF(#REF!<>"","a",IF(#REF!<>"","o","")) ->  | D103: Supply & Installation of 24-Core Horizontal Fiber Optic Splice Closure (Splicing as per site requirement) with 2 in-out cable ports, Water proof (protection grade is IP 68), suitable for Manhole (with all other wall mounting accessories). The closure can be opened again after being sealed and can be reused by changing the sealing material with all necessary accessories as per requirement. | E103: pcs. | F103: ='Data Sheet'!Z65 -> 500 | S103: ='Pack B'!#REF! -> 
A104: ='Pack B'!F11 -> 1.004 | B104: =IF(#REF!<>"","a",IF(#REF!<>"","o","")) ->  | D104: UPS System 2 kva True Online for Corridor CCTV Camera, as per specifications and requirement. | E104: pcs. | F104: ='Data Sheet'!Z66 -> 25 | G104: =(S104/($Z$2+1))/F104 -> 0 | H104: 0 | I104: =$H104*V$2 -> 0 | J104: =$H104*X$2 -> 0 | K104: =$H104*Y$2 -> 0 | M104: 0 | N104: 0 | O104: 0 | P104: =O104*(1+$W$2) -> 0 | S104: ='Pack B'!O11 -> 0
A105: ='Pack B'!#REF! ->  | B105: Hardware- OCC Internal Fiber Data Network: | S105: ='Pack B'!#REF! -> 
A106: ='Pack B'!#REF! ->  | B106: =IF(#REF!<>"","a",IF(#REF!<>"","o","")) ->  | D106: Fiber ODF-12‐Port, Supply, Install and Splice, ODF-1U, 12‐Port, Rack Mount, Fiber Patch Panel Loaded with SC Duplex adapters, SC Pigtails, fiber adapter plate and Splice trays with all other accessories as per specifications. | E106: pcs. | F106: 4 | S106: ='Pack B'!#REF! -> 
A107: ='Pack B'!#REF! ->  | B107: =IF(#REF!<>"","a",IF(#REF!<>"","o","")) ->  | D107: Supply and Install Optical Patch Cord SC to LC - 3 meter or as per required LC to SC, 9/125, Single mode Duplex Patch Cables. | E107: pcs. | F107: 300 | S107: ='Pack B'!#REF! -> 
A108: ='Pack B'!#REF! ->  | B108: =IF(#REF!<>"","a",IF(#REF!<>"","o","")) ->  | D108: Supply, Pulling, Testing & Commissioning of Optical Fiber Cable 6-Core Single Mode ITU-T (G.655), support 10 G, Armored, loose-tube, duct as per specifications with all necessary accessories as per requirement. (For internal CCTV network) | E108: meter. | F108: 500 | S108: ='Pack B'!#REF! -> 
A109: ='Pack B'!#REF! ->  | B109: Hardware- Bus Depot Parking area CCTV Network: | S109: ='Pack B'!#REF! -> 
A110: ='Pack B'!#REF! ->  | B110: =IF(#REF!<>"","a",IF(#REF!<>"","o","")) ->  | D110: Fiber ODF-24‐Port, Supply, Install and Splice, ODF-1U,24‐Port, Rack Mount, Fiber Patch Panel Loaded with SC adapters, SC Pigtails, fiber adapter plate and Splice trays with all other accessories as per specifications and requirements. | E110: pcs. | F110: 1 | S110: ='Pack B'!#REF! -> 
A111: ='Pack B'!#REF! ->  | B111: =IF(#REF!<>"","a",IF(#REF!<>"","o","")) ->  | D111: Supply and Install Optical Patch Cord SC to LC - 3 meter or as per required LC to SC, 9/125, Single mode Duplex Patch Cables. | E111: pcs. | F111: 24 | S111: ='Pack B'!#REF! -> 
A112: ='Pack B'!#REF! ->  | B112: =IF(#REF!<>"","a",IF(#REF!<>"","o","")) ->  | D112: Supply, Pulling, Testing & Commissioning of Optical Fiber Cable 6-Core Single Mode ITU-T (G.655), support 10 G, Armored, loose-tube, duct as per specifications with all necessary accessories as per requirements. | E112: meter. | F112: 300 | S112: ='Pack B'!#REF! -> 
A113: ='Pack B'!#REF! ->  | B113: =IF(#REF!<>"","a",IF(#REF!<>"","o","")) ->  | D113: Supply, Pulling, Testing & Commissioning, of Optical Fiber Cable 02-Core Single Mode ITU-T (G.655), support 10 Gig, Armored, loose-tube, duct as per specifications with all necessary accessories as per requirement. | E113: mtr. | F113: 400 | S113: ='Pack B'!#REF! -> 
A114: ='Pack B'!#REF! ->  | B114: =IF(#REF!<>"","a",IF(#REF!<>"","o","")) ->  | D114: Supply, Pulling, Testing & Commissioning, of Optical Fiber Cable 12-Core Single Mode ITU-T (G.652 D), duct type as per specifications with all necessary accessories as per requirement. | E114: mtr. | F114: 3000 | S114: ='Pack B'!#REF! -> 
A115: ='Pack B'!#REF! ->  | B115: =IF(#REF!<>"","a",IF(#REF!<>"","o","")) ->  | D115: Supply & Installation of 12-Core Horizontal Fiber Optic Splice Closure (Splicing as per site requirement) with 2 in-out cable ports, Water proof (protection grade is IP 68), suitable for Manhole (with all other wall mounting accessories). The closure can be opened again after being sealed and can be reused by changing the sealing material with all necessary accessories as per requirement. | E115: pcs. | F115: 20 | S115: ='Pack B'!#REF! -> 
A116: ='Pack B'!#REF! ->  | B116: =IF(#REF!<>"","a",IF(#REF!<>"","o","")) ->  | D116: Supply and Installation of Industrial grade POE switch (Manageable) 2 x 10/100/1000Base-T to 2 x 100/1000Base-X Fiber (minimum), as per specifications and requirement (For CCTV Camera). | E116: pcs. | F116: 20 | S116: ='Pack B'!#REF! -> 
A117: ='Pack B'!#REF! ->  | B117: =IF(#REF!<>"","a",IF(#REF!<>"","o","")) ->  | D117: Supply and Installation of CCTV main switches for Depo, 48 x 10/100/1000 4 x 10 GE SFP+ | E117: pcs. | F117: 1 | S117: ='Pack B'!#REF! -> 
A118: ='Pack B'!#REF! ->  | B118: =IF(#REF!<>"","a",IF(#REF!<>"","o","")) ->  | D118: Supply and Installation of Modules for CCTV Industrial switches uplinks SFP-1G-LX Compatible 1000BASE-LX SFP 1310nm 10km DOM Transceiver Module | E118: pcs. | F118: 4 | S118: ='Pack B'!#REF! -> 
A119: ='Pack B'!#REF! ->  | B119: =IF(#REF!<>"","a",IF(#REF!<>"","o","")) ->  | D119: Supply and Installation of Modules for CCTV main switch SFP-10G-SR Compatible 10GBASE-SR SFP+ 850nm 300m DOM Transceiver Module | E119: pcs. | F119: 2 | S119: ='Pack B'!#REF! -> 
A120: ='Pack B'!F12 -> 1.005 | B120: =IF(#REF!<>"","a",IF(#REF!<>"","o","")) ->  | D120: UPS System 2 kva True Online for CCTV Camera | E120: pcs. | F120: 1 | G120: =(S120/($Z$2+1))/F120 -> 0 | H120: 0 | I120: =$H120*V$2 -> 0 | J120: =$H120*X$2 -> 0 | K120: =$H120*Y$2 -> 0 | M120: 0 | N120: 0 | O120: 0 | P120: =O120*(1+$W$2) -> 0 | S120: ='Pack B'!O12 -> 0
A121: ='Pack B'!#REF! ->  | B121: Software-Fiber Optic Backbone DWDM Network (OCC to Stations): | S121: ='Pack B'!#REF! -> 
A122: ='Pack B'!#REF! ->  | B122: =IF(#REF!<>"","a",IF(#REF!<>"","o","")) ->  | D122: Supply, Installation, Testing & Commissioning of NMS Software. With the capability to manage all network segments of the BRT Green and Orange Line including configuration management, performance management, security management and accounting management. | E122: l.s. | F122: 1 | S122: ='Pack B'!#REF! -> 
A123: ='Pack B'!#REF! ->  | B123: =IF(#REF!<>"","a",IF(#REF!<>"","o","")) ->  | D123: Any additional items needed for NMS | E123: l.s. | F123: 1 | S123: ='Pack B'!#REF! -> 
A124: ='Pack B'!#REF! ->  | B124: Level 2 Wifi-Mesh for Bus to OCC for Green Line | S124: ='Pack B'!#REF! -> 
A125: ='Pack B'!#REF! ->  | B125: Hardware-Wifi-Mesh for Bus to OCC for Green Line | S125: ='Pack B'!#REF! -> 
A126: ='Pack B'!#REF! ->  | B126: =IF(#REF!<>"","a",IF(#REF!<>"","o","")) ->  | D126: Supply, Installation and commisioning of Wifi Mesh based Infrastructure Static devices for cooridor and stations. IEEE 802.11 a/g, Operating Channels:802.11a - 13+, Transmit Power (802.11a/g/4.9): 26 dBm,data rate of minimum 6 Mbps up to 54 Mbps, Receiver Sensitivity: -75 dBm @ 54 Mbps, Power Input: Auto-sensing 120/240 VAC, 50/60 Hz | E126: pcs. | F126: ='Data Sheet'!Z67 -> 45 | S126: ='Pack B'!#REF! -> 
A127: ='Pack B'!#REF! ->  | B127: =IF(#REF!<>"","a",IF(#REF!<>"","o","")) ->  | D127: Supply, Installation and commisioning of Wifi nesh based bus onboard units to provide mobile connectivity. IEEE 802.11/a/b/g, data rate of minimum 6 Mbps up to 54 Mbps, receiver sensitivity -75dBm @ 54 Mbps, 12-48V DC input, with support for wireless security: WPA=PSK, WPA2-PSK, WEP, TKIP,AES and MAC Access List | E127: pcs. | F127: ='Data Sheet'!Z68 -> 80 | S127: ='Pack B'!#REF! -> 
A128: ='Pack B'!#REF! ->  | B128: =IF(#REF!<>"","a",IF(#REF!<>"","o","")) ->  | D128: Supply, Installation and commisioning of Wireless network management system with hardware device + software with licenses with management and security features, Trusted Inventory Authentication, Trusted IP Management Access, RADIUS Management User Accounts, Mesh-wide Layer 2 Traffic Isolation1, Rogue Device Detection, SSID Suppression, 250 VLANs per radio, Up to 4096 Load Balancing and Auto Failover, Session-Persistent Mobility | E128: set | F128: 1 | S128: ='Pack B'!#REF! -> 
A129: ='Pack B'!#REF! ->  | B129: =IF(#REF!<>"","a",IF(#REF!<>"","o","")) ->  | D129: Setting up the operation and complete testing of wireless mesh network along the whole Green Line corridor with seamless mobile wireless access along the complete corridor upto the Bus Depot, including connectivity of static devices with the BRTS backbone network | E129: job | F129: 1 | S129: ='Pack B'!#REF! -> 
A130: ='Pack B'!#REF! ->  | D130: any additional h/w, s/w or services needed to establish the mobile wifi mesh network along the green line corridor | E130: set | F130: 1 | S130: ='Pack B'!#REF! -> 
A131: ='Pack B'!#REF! ->  | B131: Level 2 Stations - Data Network: for Green Line | S131: ='Pack B'!#REF! -> 
A132: ='Pack B'!#REF! ->  | B132: Hardware-Stations Data Network for Green Line | S132: ='Pack B'!#REF! -> 
A133: ='Pack B'!#REF! ->  | B133: =IF(#REF!<>"","a",IF(#REF!<>"","o","")) ->  | D133: Supply and Installation of Ethernet Switch 24-port, L3 Fully Manageable, nonblocking architecture, Switch having 24x10/100/1000Base-T ports with 2 SFP+ 10 GB Uplink ports lRack-mountable, min 92 Gbps switching capacity, 16k MAC Adresses, 11. Support for Control Plane Prioritization (CPP) with dynamic link failover, support SNMP, SSH and SSL for secure management, with AMF MIB and SNMP traps; | E133: pcs. | F133: ='Data Sheet'!Z71 -> 83 | S133: ='Pack B'!#REF! -> 
A134: ='Pack B'!#REF! ->  | B134: =IF(#REF!<>"","a",IF(#REF!<>"","o","")) ->  | D134: Supply and Installation of PoE Switch with 16 full power PoE ports, minimum PoE budget of 320 Watts, 10/100/1000 Mbps ports with 2xcombo SFP Slots loaded, Rack-mountable, or as per requirement. | E134: pcs. | F134: ='Data Sheet'!Z72 -> 116 | S134: ='Pack B'!#REF! -> 
A135: ='Pack B'!#REF! ->  | B135: =IF(#REF!<>"","a",IF(#REF!<>"","o","")) ->  | D135: Supply and Fixing of 42U Rack, Floor Standing, with lockable glass door, fine powder coated with fans and trays, must be imported with authorized distributor presence, must have rack mount PDU, in the package. with all accessories. | E135: pcs. | F135: ='Data Sheet'!Z73 -> 25 | S135: ='Pack B'!#REF! -> 
A136: ='Pack B'!#REF! ->  | B136: =IF(#REF!<>"","a",IF(#REF!<>"","o","")) ->  | D136: Supply and Fixing of 9U Rack, IP55, wall mounted, with lockable glass door, fine powder coated with fans and trays, must be imported with authorized distributor presence, must have rack mount PDU, in the package. with all accessories. | E136: pcs. | F136: ='Data Sheet'!Z74 -> 50 | S136: ='Pack B'!#REF! -> 
A137: ='Pack B'!#REF! ->  | B137: =IF(#REF!<>"","a",IF(#REF!<>"","o","")) ->  | D137: Supplying and laying of CAT6A UTP Ethernet Cable 23AWG (0.57 mm), CM rated and UL listed, (Blue Color), ANSI,TIA,EIA, ISO Compliance-1G Support for 100meter and 10G support for 55 meter cables through PVC conduit / cable tray as shown in the drawing or otherwise as directed by the consultant, from server to SWITCH/ROUTER to Computer Data Sockets, as required to be completed in all respect. | E137: mtrs | F137: 60000 | S137: ='Pack B'!#REF! -> 
A138: ='Pack B'!#REF! ->  | B138: =IF(#REF!<>"","a",IF(#REF!<>"","o","")) ->  | D138: Supply and installation of Duplex data and Voice outlet on wall / furniture / partition with CAT6A UTP I/O, face plate and back box, as shown in the drawing or as per requirement. | E138: pcs. | F138: ='Data Sheet'!Z76 -> 2000 | S138: ='Pack B'!#REF! -> 
A139: ='Pack B'!#REF! ->  | B139: =IF(#REF!<>"","a",IF(#REF!<>"","o","")) ->  | D139: Supply and installation of Patch Panel CAT6A 24 Port (fully loaded) with CAT6 I/O, with front/rear cable management ANSI, TIA, EIA, ISO Compliance Flame retardant –Must be UL Listed and should have side covers on cage nuts. | E139: pcs. | F139: ='Data Sheet'!Z77 -> 100 | S139: ='Pack B'!#REF! -> 
A140: ='Pack B'!#REF! ->  | B140: =IF(#REF!<>"","a",IF(#REF!<>"","o","")) ->  | D140: Supply of Patch cord CAT6 UTP (1 meter) Machine punched, Stranded, ANSI,TIA,EIA, ISO Compliance with Gold over nickel plated contacts in Connector, must have anti snag mechanism- Must be UL Listed, from core switch to LAN Patch panel. | E140: pcs. | F140: ='Data Sheet'!Z78 -> 1250 | S140: ='Pack B'!#REF! -> 
A141: ='Pack B'!#REF! ->  | B141: =IF(#REF!<>"","a",IF(#REF!<>"","o","")) ->  | D141: Supply of Patch cord CAT6 UTP (3 meter) Machine punched, Stranded, ANSI,TIA,EIA, ISO Compliance with Gold over nickel plated contacts in Connector, must have anti snag mechanism- Must be UL Listed, from wall outlet to devices. | E141: pcs. | F141: ='Data Sheet'!Z79 -> 750 | S141: ='Pack B'!#REF! -> 
A142: ='Pack B'!#REF! ->  | B142: =IF(#REF!<>"","a",IF(#REF!<>"","o","")) ->  | D142: Termination and Labeling of CAT 6A UTP cable on both end. | E142: job. | F142: 1 | M142: =O142/F142 ->  | N142: =P142/F142 ->  | S142: ='Pack B'!#REF! -> 
A143: ='Pack B'!#REF! ->  | B143: =IF(#REF!<>"","a",IF(#REF!<>"","o","")) ->  | D143: Testing and commissioning of copper nodes with Fluke Network devices. Including submission of detailed test reports. | E143: job. | F143: 1 | P143: =O143*(1+$W$8) ->  | S143: ='Pack B'!#REF! -> 
A144: ='Pack B'!#REF! ->  | B144: =IF(#REF!<>"","a",IF(#REF!<>"","o","")) ->  | D144: IP Telephone | E144: pcs. | F144: ='Data Sheet'!Z80 -> 100 | S144: ='Pack B'!#REF! -> 
A145: ='Pack B'!#REF! ->  | D145: Equipments & Materials (if any) not mentioned in BoQ but bidder feels necessary for successful completion of project. | E145: l. s. | F145: 1 | S145: ='Pack B'!#REF! -> 
A146: ='Pack B'!#REF! ->  | B146: =IF(#REF!<>"","a",IF(#REF!<>"","o","")) ->  | D146: Network Switches for PA System | E146: pcs. | F146: ='Data Sheet'!Z81+1 -> 26 | S146: ='Pack B'!#REF! -> 
A147: ='Pack B'!#REF! ->  | B147: =IF(#REF!<>"","a",IF(#REF!<>"","o","")) ->  | D147: Network Security Appliance | E147: pcs. | F147: ='Data Sheet'!Z81 -> 25 | S147: ='Pack B'!#REF! -> 
A148: ='Pack B'!#REF! ->  | B148: Level 1: Security and Surveillance Equipment for Green Line | S148: ='Pack B'!#REF! -> 
A149: ='Pack B'!#REF! ->  | B149: Hardware: security and surveillance cameras for stations and corridor green line | S149: ='Pack B'!#REF! -> 
A150: ='Pack B'!#REF! ->  | B150: =IF(#REF!<>"","a",IF(#REF!<>"","o","")) ->  | D150: Surveillance camera for stations: 2 MP, 1/2.8" imager size, 2.8 mm lens, Dome, PoE Camera general specifications: compression options H.265, H.265+, H.264+, H.264, min 120dB Wide Dynamic Range and Day/Night, 3D Digital Noise Reduction, IR range: min 30m, IP66 or above, IK10, min illumination 0.05 lux and 0 lux with IR on, outdoor, all cameras to have following Intelligent features as standard/built in. Motion, tripwire, intrusion, scene change and abondoned/missing object detection. Facial detection | E150: pcs. | F150: ='Data Sheet'!Z26 -> 51 | G150: =(S150/($Z$6+1))/F150 ->  | H150: =G150*F150 ->  | I150: =$H150*V$6 ->  | J150: =$H150*X$6 ->  | K150: =$H150*Y$6 ->  | O150: =SUM(H150:K150) ->  | P150: =O150*(1+$W$2) ->  | S150: ='Pack B'!#REF! -> 
A151: ='Pack B'!#REF! ->  | B151: =IF(#REF!<>"","a",IF(#REF!<>"","o","")) ->  | D151: Surveillance camera for stations:3 MP to 4 MP, 1/2.8" to 1/3" imager size, 2.8 mm lens, Dome, PoE Camera general specifications: compression options H.265, H.265+, H.264+, H.264, min 120dB Wide Dynamic Range and Day/Night, 3D Digital Noise Reduction, IR range: min 30m, IP66 or above, IK10, min illumination 0.05 lux and 0 lux with IR on, outdoor, all cameras to have following Intelligent features as standard/built in. Motion, tripwire, intrusion, scene change and abondoned/missing object detection. Facial detection | E151: pcs. | F151: ='Data Sheet'!Z27 -> 74 | G151: =(S151/($Z$6+1))/F151 ->  | H151: =G151*F151 ->  | I151: =$H151*V$6 ->  | J151: =$H151*X$6 ->  | K151: =$H151*Y$6 ->  | O151: =SUM(H151:K151) ->  | S151: ='Pack B'!#REF! -> 
A152: ='Pack B'!#REF! ->  | B152: =IF(#REF!<>"","a",IF(#REF!<>"","o","")) ->  | D152: Surveillance camera for stations:3 MP to 4 MP, 1/2.8" to 1/3" imager size, 4 mm lens, Dome, PoE Camera general specifications: compression options H.265, H.265+, H.264+, H.264, min 120dB Wide Dynamic Range and Day/Night, 3D Digital Noise Reduction, IR range: min 30m, IP66 or above, IK10, min illumination 0.05 lux and 0 lux with IR on, outdoor, all cameras to have following Intelligent features as standard/built in. Motion, tripwire, intrusion, scene change and abondoned/missing object detection. Facial detection | E152: pcs. | F152: ='Data Sheet'!Z28 -> 90 | S152: ='Pack B'!#REF! -> 
A153: ='Pack B'!#REF! ->  | B153: =IF(#REF!<>"","a",IF(#REF!<>"","o","")) ->  | D153: Surveillance camera for stations:5 MP to 6 MP, 1/2.9" to 1/3" imager size, 2.8 mm lens, Dome, PoE Camera general specifications: compression options H.265, H.265+, H.264+, H.264, min 120dB Wide Dynamic Range and Day/Night, 3D Digital Noise Reduction, IR range: min 30m, IP66 or above, IK10, min illumination 0.05 lux and 0 lux with IR on, outdoor, all cameras to have following Intelligent features as standard/built in. Motion, tripwire, intrusion, scene change and abondoned/missing object detection. Facial detection | E153: pcs. | F153: ='Data Sheet'!Z29 -> 51 | S153: ='Pack B'!#REF! -> 
A154: ='Pack B'!#REF! ->  | B154: =IF(#REF!<>"","a",IF(#REF!<>"","o","")) ->  | D154: Surveillance camera for stations:5 MP to 6 MP, 1/2.9" to 1/3" imager size, 4 mm lens, Dome, PoE Camera general specifications: compression options H.265, H.265+, H.264+, H.264, min 120dB Wide Dynamic Range and Day/Night, 3D Digital Noise Reduction, IR range: min 30m, IP66 or above, IK10, min illumination 0.05 lux and 0 lux with IR on, outdoor, all cameras to have following Intelligent features as standard/built in. Motion, tripwire, intrusion, scene change and abondoned/missing object detection. Facial detection | E154: pcs. | F154: ='Data Sheet'!Z30 -> 68 | S154: ='Pack B'!#REF! -> 
A155: ='Pack B'!#REF! ->  | B155: =IF(#REF!<>"","a",IF(#REF!<>"","o","")) ->  | D155: Surveillance camera for stations:5 MP to 6 MP, 1/2.9" to 1/3" imager size, 6 mm lens, Dome, PoE Camera general specifications: compression options H.265, H.265+, H.264+, H.264, min 120dB Wide Dynamic Range and Day/Night, 3D Digital Noise Reduction, IR range: min 30m, IP66 or above, IK10, min illumination 0.05 lux and 0 lux with IR on, outdoor, all cameras to have following Intelligent features as standard/built in. Motion, tripwire, intrusion, scene change and abondoned/missing object detection. Facial detection | E155: pcs. | F155: ='Data Sheet'!Z31 -> 48 | S155: ='Pack B'!#REF! -> 
A156: ='Pack B'!#REF! ->  | B156: =IF(#REF!<>"","a",IF(#REF!<>"","o","")) ->  | D156: Surveillance camera for corridor:5 MP to 6 MP, 1/2.9" to 1/3" imager size, 12 mm lens, Dome, PoE Camera general specifications: compression options H.265, H.265+, H.264+, H.264, min 120dB Wide Dynamic Range and Day/Night, 3D Digital Noise Reduction, IR range: min 30m, IP66 or above, IK10, min illumination 0.05 lux and 0 lux with IR on, outdoor, all cameras to have following Intelligent features as standard/built in. Motion, tripwire, intrusion, scene change and abondoned/missing object detection. Facial detection | E156: pcs. | F156: ='Data Sheet'!Z32 -> 257 | S156: ='Pack B'!#REF! -> 
A157: ='Pack B'!#REF! ->  | B157: =IF(#REF!<>"","a",IF(#REF!<>"","o","")) ->  | D157: Surveillance camera for stations:8 MP, 1/2.5" imager size, 4 mm lens, Dome, PoE Camera general specifications: compression options H.265, H.265+, H.264+, H.264, min 120dB Wide Dynamic Range and Day/Night, 3D Digital Noise Reduction, IR range: min 30m, IP66 or above, IK10, min illumination 0.05 lux and 0 lux with IR on, outdoor, all cameras to have following Intelligent features as standard/built in. Motion, tripwire, intrusion, scene change and abondoned/missing object detection. Facial detection, people counting and heat mapping | E157: pcs. | F157: ='Data Sheet'!Z33 -> 190 | S157: ='Pack B'!#REF! -> 
A158: ='Pack B'!#REF! ->  | B158: =IF(#REF!<>"","a",IF(#REF!<>"","o","")) ->  | D158: Surveillance camera for stations:5 MP to 6 MP, 1/2.9" to 1/3" imager size, PTZ, , PoE Camera general specifications: compression options H.265, H.265+, H.264+, H.264, min 120dB Wide Dynamic Range and Day/Night, 3D Digital Noise Reduction, IR range: min 30m, IP66 or above, IK10, min illumination 0.05 lux and 0 lux with IR on, outdoor, all cameras to have following Intelligent features as standard/built in. Motion, tripwire, intrusion, scene change and abondoned/missing object detection. Facial detection | E158: pcs. | F158: ='Data Sheet'!Z34 -> 8 | S158: ='Pack B'!#REF! -> 
A159: ='Pack B'!#REF! ->  | B159: =IF(#REF!<>"","a",IF(#REF!<>"","o","")) ->  | D159: Supply and laying of Electrical power supply Cable from UPS in station to Cameras at poles in corridor. | E159: pcs. | F159: ='Data Sheet'!Z32 -> 257 | G159: =(S159/($Z$4+1))/F159 ->  | I159: =$H159*V$4 ->  | J159: =$H159*X$4 ->  | K159: =$H159*Y$4 ->  | P159: =O159*(1+$W$4) ->  | S159: ='Pack B'!#REF! -> 
A160: ='Pack B'!#REF! ->  | B160: Hardware: security and surveillance cameras for OCC and Depot green line | S160: ='Pack B'!#REF! -> 
A161: ='Pack B'!#REF! ->  | B161: =IF(#REF!<>"","a",IF(#REF!<>"","o","")) ->  | D161: Surveillance camera for OCC:5 MP to 6 MP, 1/2.9" to 1/3" imager size, 2.8 mm lens, Dome, PoE Camera general specifications: compression options H.265, H.265+, H.264+, H.264, min 120dB Wide Dynamic Range and Day/Night, 3D Digital Noise Reduction, IR range: min 30m, IP66 or above, IK10, min illumination 0.05 lux and 0 lux with IR on, outdoor, all cameras to have following Intelligent features as standard/built in. Motion, tripwire, intrusion, scene change and abondoned/missing object detection. Facial detection | E161: pcs. | F161: 25 | G161: =(S161/($Z$6+1))/F161 ->  | I161: =$H161*V$6 ->  | J161: =$H161*X$6 ->  | K161: =$H161*Y$6 ->  | P161: =O161*(1+$W$6) ->  | S161: ='Pack B'!#REF! -> 
A162: ='Pack B'!#REF! ->  | B162: =IF(#REF!<>"","a",IF(#REF!<>"","o","")) ->  | D162: Surveillance camera for OCC:5 MP to 6 MP, 1/2.9" to 1/3" imager size, PTZ, PoE Camera general specifications: compression options H.265, H.265+, H.264+, H.264, min 120dB Wide Dynamic Range and Day/Night, 3D Digital Noise Reduction, IR range: min 30m, IP66 or above, IK10, min illumination 0.05 lux and 0 lux with IR on, outdoor, all cameras to have following Intelligent features as standard/built in. Motion, tripwire, intrusion, scene change and abondoned/missing object detection. Facial detection | E162: pcs. | F162: 4 | G162: =(S162/($Z$6+1))/F162 ->  | H162: =G162*F162 ->  | I162: =$H162*V$6 ->  | J162: =$H162*X$6 ->  | K162: =$H162*Y$6 ->  | O162: =SUM(H162:K162) ->  | P162: =O162*(1+$W$6) ->  | S162: ='Pack B'!#REF! -> 
A163: ='Pack B'!#REF! ->  | B163: =IF(#REF!<>"","a",IF(#REF!<>"","o","")) ->  | D163: Surveillance camera for Depot Indoor :5 MP to 6 MP, 1/2.9" to 1/3" imager size, 2.8 mm lens, Dome, PoE Camera general specifications: compression options H.265, H.265+, H.264+, H.264, min 120dB Wide Dynamic Range and Day/Night, 3D Digital Noise Reduction, IR range: min 30m, IP66 or above, IK10, min illumination 0.05 lux and 0 lux with IR on, outdoor, all cameras to have following Intelligent features as standard/built in. Motion, tripwire, intrusion, scene change and abondoned/missing object detection. Facial detection | E163: pcs. | F163: 15 | S163: ='Pack B'!#REF! -> 
A164: ='Pack B'!#REF! ->  | B164: =IF(#REF!<>"","a",IF(#REF!<>"","o","")) ->  | D164: Surveillance camera for Depot:5 MP to 6 MP, 1/2.9" to 1/3" imager size, PTZ, , PoE Camera general specifications: compression options H.265, H.265+, H.264+, H.264, min 120dB Wide Dynamic Range and Day/Night, 3D Digital Noise Reduction, IR range: min 30m, IP66 or above, IK10, min illumination 0.05 lux and 0 lux with IR on, outdoor, all cameras to have following Intelligent features as standard/built in. Motion, tripwire, intrusion, scene change and abondoned/missing object detection. Facial detection | E164: pcs. | F164: 18 | S164: ='Pack B'!#REF! -> 
A165: ='Pack B'!#REF! ->  | B165: =IF(#REF!<>"","a",IF(#REF!<>"","o","")) ->  | D165: Surveillance camera for Depot Outdoor :5 MP to 6 MP, 1/2.9" to 1/3" imager size, 6 mm lens, Dome Camera general specifications: compression options H.265, H.265+, H.264+, H.264, min 120dB Wide Dynamic Range and Day/Night, 3D Digital Noise Reduction, IR range: min 30m, IP66 or above, IK10, min illumination 0.05 lux and 0 lux with IR on, outdoor, all cameras to have following Intelligent features as standard/built in. Motion, tripwire, intrusion, scene change and abondoned/missing object detection. Facial detection | E165: pcs. | F165: 33 | S165: ='Pack B'!#REF! -> 
A166: ='Pack B'!#REF! ->  | B166: Hardware: security and surveillance gates and access control for green line | S166: ='Pack B'!#REF! -> 
A167: ='Pack B'!#REF! ->  | B167: =IF(#REF!<>"","a",IF(#REF!<>"","o","")) ->  | D167: Walkthrough security gates. multi-zone detection, Operating Temperature -10 to 55 Centigrade, 95% humidity, weather proof, foreign object protected, IP 65, dual directional, with pacing light at entrance, indication lights, with selectable setting and networking option with relevant certification | E167: pcs. | F167: ='Data Sheet'!Z44 -> 46 | G167: =(S167/($Z$2+1))/F167 ->  | I167: =$H167*V$2 ->  | J167: =$H167*X$2 ->  | K167: =$H167*Y$2 ->  | S167: ='Pack B'!#REF! -> 
A168: ='Pack B'!F13 -> 1.006 | B168: =IF(#REF!<>"","a",IF(#REF!<>"","o","")) ->  | D168: Hand held scanners: self calicbrating, rugged, Mil-Std 810-F, -10 to 60 degree Centrigade, sharp audible alarm, 8 inch scan surface rechargeable battery with min 40 hrs operation on recharge. | E168: pcs. | F168: ='Data Sheet'!Z45 -> 46 | G168: 0 | H168: 0 | I168: 0 | J168: 0 | K168: 0 | M168: 0 | N168: 0 | O168: 0 | P168: 0 | S168: ='Pack B'!O13 -> 0
A169: ='Pack B'!#REF! ->  | B169: =IF(#REF!<>"","a",IF(#REF!<>"","o","")) ->  | D169: Security barrier for vehicles and buses at depot, load capacity 100 tons, elctrical/hydraulic raising lowering, Installable flush to finished road, Crash test certified, remotely operated 30m, 220V/380V operated, min width 3.5m | E169: pcs. | F169: 1 | S169: ='Pack B'!#REF! -> 
A170: ='Pack B'!#REF! ->  | B170: Level 4: Security and Surveillance Equipment for Green Line | S170: ='Pack B'!#REF! -> 
A171: ='Pack B'!#REF! ->  | B171: Hardware: security and surveillance storage system | S171: ='Pack B'!#REF! -> 
A172: ='Pack B'!#REF! ->  | B172: =IF(#REF!<>"","a",IF(#REF!<>"","o","")) ->  | D172: Storage system for surveillance video. Hybrid Platform with option for SSD and SAS Drives. Multi chasis system with Minimum 120,000 IOPS and 12 GB/s bandwidth per chasis. multiple nodes per Chasis. Intel Xeon cpu per node, 2x10 GE per node,dual redundant hot swappable power supply with PFC with 180-265VAC Input Voltage Total storage capacity of 2 PetaByte Complete with racks, cabling and all accesories and relevant software licenses. | E172: l.s. | F172: 1 | S172: ='Pack B'!#REF! -> 
A173: ='Pack B'!#REF! ->  | B173: =IF(#REF!<>"","a",IF(#REF!<>"","o","")) ->  | D173: Business Continuity & Disaster Recovery Option for Video storage system at 13.001 above to be installed at Green line Bus Depot | E173: l.s. | F173: 1 | S173: ='Pack B'!#REF! -> 
A174: ='Pack B'!#REF! ->  | B174: =IF(#REF!<>"","a",IF(#REF!<>"","o","")) ->  | D174: NVR for local video storage at stations and depot: 64 channel, 512 Mbps input rate, 4 channel @4K display, 2 HDMI, VGA, 64 TB storage, 2xGbE ports, AC 180-260 V Power supply, H.265+, H.265, H.264,MJPEG compression | E174: pcs. | F174: ='Data Sheet'!Z51 -> 25 | S174: ='Pack B'!#REF! -> 
A175: ='Pack B'!F14 -> 1.007 | B175: =IF(#REF!<>"","a",IF(#REF!<>"","o","")) ->  | D175: UPS for storage system, 100 kVA, Online double conversion, modular, hot swappable, input Voltage range 150-264V, input frequency 35-70 Hz, Output frequency 50Hz, upto 96% efficiency, THD <1.5%, PF at 100% load >= 98%. Complete with batteries for 30 min backup time | E175: pcs. | F175: 1 | G175: 0 | H175: 0 | I175: 0 | J175: 0 | K175: 0 | M175: 0 | N175: 0 | O175: 0 | P175: 0 | S175: ='Pack B'!O14 -> 0
A176: ='Pack B'!F19 -> 1.012 | B176: =IF(#REF!<>"","a",IF(#REF!<>"","o","")) ->  | D176: UPS for NVR in Station, 1 KVA, trueonline with 15 min back up time | E176: pcs. | F176: =F174 -> 25 | G176: 0 | H176: 0 | I176: 0 | J176: 0 | K176: 0 | M176: 0 | N176: 0 | O176: 0 | P176: 0 | S176: ='Pack B'!O19 -> 0
A177: ='Pack B'!#REF! ->  | B177: =IF(#REF!<>"","a",IF(#REF!<>"","o","")) ->  | D177: Video Management Server Intel Xeon, with 32 GB DDR4 | E177: pcs. | F177: 2 | S177: ='Pack B'!#REF! -> 
A178: ='Pack B'!#REF! ->  | B178: Software: security and surveillance system | S178: ='Pack B'!#REF! -> 
A179: ='Pack B'!#REF! ->  | B179: =IF(#REF!<>"","a",IF(#REF!<>"","o","")) ->  | D179: Video Management software scalable and modular, Extensible with plugins for overlays and ANPR, capable of managing min 1500 cameras, with clustering support for redundancy, with media gateway, operations management, with options to integrate with third party storage solutions with investigate options | E179: pcs. | F179: 1 | G179: =(S179/($Z$3+1))/F179 ->  | I179: =$H179*V$3 ->  | J179: =$H179*X$3 ->  | K179: =$H179*Y$3 ->  | P179: =O179*(1+$W$3) ->  | S179: ='Pack B'!#REF! -> 
A180: ='Pack B'!#REF! ->  | B180: =IF(#REF!<>"","a",IF(#REF!<>"","o","")) ->  | D180: Video analysis software: Video search and summary, scanning videos actross multiple streams for recognition and events,motion detection, camera tamper detection, intrusion and line crossing detection, working with intelligent cameras for distributed processing, alarm management. | E180: pcs. | F180: 1 | G180: =(S180/($Z$3+1))/F180 ->  | H180: =G180*F180 ->  | I180: =$H180*V$3 ->  | J180: =$H180*X$3 ->  | K180: =$H180*Y$3 ->  | O180: =SUM(H180:K180) ->  | P180: =O180*(1+$W$3) ->  | S180: ='Pack B'!#REF! -> 
A181: ='Pack B'!#REF! ->  | B181: =IF(#REF!<>"","a",IF(#REF!<>"","o","")) ->  | D181: Any other equipment/software needed tocomplete the video storage and analysis system | E181: l.s. | F181: 1 | M181: 0 | N181: 0 | S181: ='Pack B'!#REF! -> 
A182: ='Pack B'!#REF! ->  | B182: Signal Priority System for Green Line | S182: ='Pack B'!#REF! -> 
A183: ='Pack B'!#REF! ->  | B183: Hardware: Signal Priority System for Green Line | S183: ='Pack B'!#REF! -> 
A184: ='Pack B'!#REF! ->  | B184: =IF(#REF!<>"","a",IF(#REF!<>"","o","")) ->  | D184: Design of Active priority TSP system for Green Line BRTS | E184: l.s. | F184: 1 | S184: ='Pack B'!#REF! -> 
A185: ='Pack B'!#REF! ->  | B185: =IF(#REF!<>"","a",IF(#REF!<>"","o","")) ->  | D185: Supply and Installation of Bus Onboard Unit for Signal Priority System including integration, if required, with other onboard systems i.e. wireless mesh communication unit, AVM unit | E185: pcs. | F185: ='Data Sheet'!M1 -> 80 | S185: ='Pack B'!#REF! -> 
A186: ='Pack B'!#REF! ->  | B186: =IF(#REF!<>"","a",IF(#REF!<>"","o","")) ->  | D186: Supply and Installation of Bus Onboard Control head with indication/alerts for driver | E186: pcs. | F186: =F185 -> 80 | S186: ='Pack B'!#REF! -> 
A187: ='Pack B'!#REF! ->  | B187: =IF(#REF!<>"","a",IF(#REF!<>"","o","")) ->  | D187: Supply and Installation of Traffic Signals at Green Line locations, with high intensity, anti phantom, greater than 80,000 hrs life, 200mm 4 way traffic lights with poles, related power supply including UPS with 30 min backup, all related cabling and civil works | E187: l.s. | F187: 5 | S187: ='Pack B'!#REF! -> 
A188: ='Pack B'!#REF! ->  | B188: =IF(#REF!<>"","a",IF(#REF!<>"","o","")) ->  | D188: Supply and Installation of Local Signal priority controller with ability to operate signals in case of communication failure with Central Signal Priority Control Software | E188: l.s. | F188: 5 | S188: ='Pack B'!#REF! -> 
A189: ='Pack B'!#REF! ->  | D189: Supply and Installation of priority vehicle detector, required only if integration with AVM is not selected. | E189: l.s. | F189: 5 | S189: ='Pack B'!#REF! -> 
A190: ='Pack B'!#REF! ->  | B190: Software: Signal priority controller | S190: ='Pack B'!#REF! -> 
A191: ='Pack B'!#REF! ->  | D191: Active Signal Priority control software providing priority control based on preferred vehicle's position. Implementing algorithms for priority operation of traffic signals with customized algorithm for Orange Line Signal. Should provide facility to adjust control strategy parameters. Include integration with AVM System for vehicle position monitoring. | E191: l.s. | F191: 1 | S191: ='Pack B'!#REF! -> 
A192: ='Pack B'!#REF! ->  | B192: Implementation | S192: ='Pack B'!#REF! -> 
A193: ='Pack B'!#REF! ->  | B193: Project Management | S193: ='Pack B'!#REF! -> 
A194: ='Pack B'!#REF! ->  | B194: =IF(#REF!<>"","a",IF(#REF!<>"","o","")) ->  | D194: project management until start of operation phase. Bidders must breakdown, detail and price positions individually | E194: l. s. | F194: 1 | G194: =(S194/($Z$2+1))/F194 ->  | O194: =0.15*SUM(O13:O191) ->  | P194: =O194*113% ->  | S194: ='Pack B'!#REF! -> 
A195: ='Pack B'!#REF! ->  | B195: =IF(#REF!<>"","a",IF(#REF!<>"","o","")) ->  | D195: additional order: project management | E195: man-day | F195: 1 | S195: ='Pack B'!#REF! -> 
A196: ='Pack B'!#REF! ->  | B196: =IF(#REF!<>"","a",IF(#REF!<>"","o","")) ->  | D196: system design specification (SDS) | E196: l. s. | F196: 1 | S196: ='Pack B'!#REF! -> 
A197: ='Pack B'!#REF! ->  | B197: =IF(#REF!<>"","a",IF(#REF!<>"","o","")) ->  | D197: Business Rules, Operational manual, Roles and Responsibilities, based on best practice adapted to the karachi IITS setup | E197: l. s. | F197: 1 | S197: ='Pack B'!#REF! -> 
A198: ='Pack B'!#REF! ->  | B198: =IF(#REF!<>"","a",IF(#REF!<>"","o","")) ->  | D198: Factory Acceptance Test One FAT expected for all components. | E198: l.s. | F198: 1 | S198: ='Pack B'!#REF! -> 
A199: ='Pack B'!#REF! ->  | B199: =IF(#REF!<>"","a",IF(#REF!<>"","o","")) ->  | D199: ITS Functionality Check / System Acceptance Test (SAT1) | E199: l. s. | F199: 1 | S199: ='Pack B'!#REF! -> 
A200: ='Pack B'!#REF! ->  | B200: =IF(#REF!<>"","a",IF(#REF!<>"","o","")) ->  | D200: ITS trial operation and System Acceptance Test (SAT2) (No start of Trial Operation before SAT2 passed successful) | E200: l. s. | F200: 1 | S200: ='Pack B'!#REF! -> 
... 272 more rows

Sheet Package B Cost Break Down L1 (hidden)
R1: Cd | S1: ST | T1: IT | U1: ACD
P2: HW tax & Duties | R2: 0.03 | S2: 0.17 | T2: 0.055 | U2: 0.02 | V2: =SUM(R2:U2)-S2 -> 0.105 | W2: =100%-V2 -> 0.895
B3: IITS Green Line Package B Engineer's Estimate | P3: SW Tax & duties | R3: 0.11 | S3: 0.17 | T3: 0.055 | U3: 0.02 | V3: =SUM(R3:U3)-S3 -> 0.185 | W3: =100%-V3 -> 0.815
A4: ='Pack B'!F4 -> Pos. | B4: ='Pack B'!I4&" - "&'Pack B'!F2 -> Item description - List of Consumables Package B | C4: unit | D4: qty | E4: cost per item | F4: Amount | G4: Taxes and duties | K4: Total Amount without GST | L4: Amount with GST | P4: Services | R4: 0 | S4: 0.13 | T4: 0.055 | U4: 0 | V4: =SUM(R4:U4)-S4 -> 0.055 | W4: =100%-V4 -> 0.945
G5: CD | H5: IT | I5: ACD | J5: other | K5: =SUM(K6:K18) ->  | L5: =SUM(L6:L18) -> 
A6: ='Pack B'!F6 -> Title 1 | B6: ='Pack B'!G6 -> List of Consumables Package B | D6: 1 | E6: =O6/($V$2+1) -> 0 | F6: =E6*D6 -> 0 | G6: =$E6*R$2 -> 0 | H6: =$E6*T$2 -> 0 | I6: =$E6*U$2 -> 0 | K6: =SUM(F6:J6) -> 0 | L6: =K6*(1+$R$2) -> 0 | N6: =O6 -> 0 | O6: ='highlevel Pack B'!C6 -> 0
A7: ='Pack B'!#REF! ->  | B7: ='Pack B'!#REF! ->  | C7: l.s. | D7: 1 | E7: =O7/($V$2+1) ->  | F7: =E7*D7 ->  | G7: =$E7*R$2 ->  | H7: =$E7*T$2 ->  | I7: =$E7*U$2 ->  | K7: =SUM(F7:I7) ->  | L7: =K7*(1+$R$2) ->  | M7: ='Pack A'!AA7 -> 0 | N7: =O7 ->  | O7: ='highlevel Pack B'!#REF! -> 
A8: ='Pack B'!#REF! ->  | B8: ='Pack B'!#REF! ->  | C8: l.s. | D8: 1 | E8: =O8/($V$2+1) ->  | F8: =E8*D8 ->  | G8: =$E8*R$2 ->  | H8: =$E8*T$2 ->  | I8: =$E8*U$2 ->  | K8: =SUM(F8:I8) ->  | L8: =K8*(1+$R$2) ->  | M8: ='Pack A'!#REF! ->  | O8: ='highlevel Pack B'!#REF! -> 
A9: ='Pack B'!#REF! ->  | B9: ='Pack B'!#REF! ->  | D9: 1 | F9: =E9*D9 ->  | K9: =SUM(F9:I9) ->  | L9: =K9*(1+$R$2) ->  | O9: ='highlevel Pack B'!#REF! -> 
A10: ='Pack B'!#REF! ->  | B10: ='Pack B'!#REF! ->  | C10: l.s. | D10: 1 | K10: =SUM(F10:I10) ->  | L10: =K10*(1+$R$2) ->  | M10: ='Pack A'!#REF! ->  | O10: ='highlevel Pack B'!#REF! -> 
A11: ='Pack B'!#REF! ->  | B11: ='Pack B'!#REF! ->  | C11: l.s. | D11: 1 | K11: =SUM(F11:I11) ->  | M11: ='Pack A'!#REF! ->  | O11: ='highlevel Pack B'!#REF! -> 
A12: ='Pack B'!#REF! ->  | B12: ='Pack B'!#REF! ->  | C12: l.s. | D12: 1 | M12: ='Pack A'!#REF! ->  | O12: ='highlevel Pack B'!#REF! -> 
A13: ='Pack B'!#REF! ->  | B13: ='Pack B'!#REF! ->  | C13: l.s. | D13: 1 | M13: ='Pack A'!#REF! ->  | O13: ='highlevel Pack B'!#REF! -> 
A14: ='Pack B'!#REF! ->  | B14: ='Pack B'!#REF! ->  | C14: l.s. | D14: 1 | M14: ='Pack A'!#REF! ->  | O14: ='highlevel Pack B'!#REF! -> 
A15: ='Pack B'!#REF! ->  | B15: ='Pack B'!#REF! ->  | C15: l.s. | D15: 1 | M15: ='Pack A'!#REF! ->  | O15: ='highlevel Pack B'!#REF! -> 
A16: ='Pack B'!#REF! ->  | B16: ='Pack B'!#REF! ->  | D16: 1 | O16: ='highlevel Pack B'!#REF! -> 
A17: ='Pack B'!#REF! ->  | B17: ='Pack B'!#REF! ->  | C17: l.s. | D17: 1 | E17: =O17/($U$2+1) ->  | M17: ='Pack A'!#REF! ->  | N17: =O17 ->  | O17: ='highlevel Pack B'!#REF! -> 
A18: ='Pack B'!#REF! ->  | B18: ='Pack B'!#REF! ->  | C18: l.s. | D18: 1 | E18: =O18/($U$3+1) ->  | M18: ='Pack A'!#REF! ->  | O18: ='highlevel Pack B'!#REF! -> 

Sheet Data Sheet (hidden)
A1: Occurance | D1: 8 | E1: 4 | F1: 7 | G1: 1 | H1: 1 | I1: 1 | J1: 3 | K1: 2 | L1: 3 | M1: 80 | N1: 1 | O1: 1 | P1: 22350 | Q1: 1 | R1: 1 | S1: 1 | T1: 1 | U1: 1 | V1: 1 | W1: 25 | X1: 1 | Y1: 3700 | Z1: Sum GL | AA1: Sum OL | AB1: Total
A2: Station Type | D2: split | E2: split | F2: median | G2: split | H2: split | I2: median | J2: median
A3: Station Alignment | D3: Beside Road | E3: median | F3: median | G3: median | H3: Beside Road | I3: median | J3: median
A4: Bays | D4: 2+2 | E4: 2+2 | F4: 3+3 | G4: 3+3 | H4: 2+2 | I4: 2+2 2+2 | J4: 2+2
A5: Build | D5: elevated | E5: elevated | F5: grade | G5: grade | H5: grade | I5: grade | J5: elevated
A6: Entry Points | D6: 7 | E6: 4 | F6: 4 | G6: 4 | H6: 5 | I6: 4 | J6: 4
A7: special | F7: with passing | I7: with passing
A8: Category | B8: Package | D8: A | E8: B | F8: C | G8: D | H8: E | I8: N | J8: U | K8: Customer Care | L8: POI | M8: GL Buses | N8: Depot | O8: OCC | P8: GL Corridor | Q8: OL St1 | R8: OL St2 | S8: OL St3 | T8: OL St4 | U8: OL St5 | V8: OL St6 | W8: OL Buses | X8: OL Depot | Y8: OL Corridor
A9: TOM | B9: A | C9: 9.002 | D9: 2 | E9: 2 | F9: 2 | G9: 2 | H9: 2 | I9: 2 | J9: =E9 -> 2 | K9: 1 | L9: 1 | M9: 0 | N9: 0 | O9: 0 | P9: 0 | Q9: 2 | R9: 2 | S9: 2 | T9: 2 | U9: 2 | V9: 2 | W9: 0 | X9: 0 | Y9: 0 | Z9: =D$1*D9+E$1*E9+F$1*F9+G$1*G9+H$1*H9+I$1*I9+J$1*J9+K$1*K9+L$1*L9 -> 55 | AA9: =Q$1*Q9+R$1*R9+S$1*S9+T$1*T9+U$1*U9+V$1*V9 -> 12 | AB9: =Z9+AA9 -> 67
A10: TVM | B10: A | C10: 10.002 | D10: 1 | E10: 2 | F10: 2 | G10: 2 | H10: 1 | I10: 1 | J10: 1 | K10: 0 | L10: 0 | M10: 0 | N10: 0 | O10: 0 | P10: 0 | Q10: 1 | R10: 1 | S10: 1 | T10: 1 | U10: 1 | V10: 1 | W10: 0 | X10: 0 | Y10: 0 | Z10: =D$1*D10+E$1*E10+F$1*F10+G$1*G10+H$1*H10+I$1*I10+J$1*J10+K$1*K10+L$1*L10 -> 37 | AA10: 6 | AB10: =Z10+AA10 -> 43
A11: TUM | B11: A | C11: 11.002 | D11: 1 | E11: 1 | F11: 1 | G11: 1 | H11: 1 | I11: 1 | J11: =E11 -> 1 | K11: 2 | L11: 1 | M11: 0 | N11: 0 | O11: 0 | P11: 0 | Q11: 2 | R11: 2 | S11: 2 | T11: 2 | U11: 2 | V11: 2 | W11: 0 | X11: 0 | Y11: 0 | Z11: 32 | AA11: 12 | AB11: 44
A12: HHM | B12: A | C12: 12.002 | D12: 1 | E12: 1 | F12: 1 | G12: 1 | H12: 1 | I12: 1 | J12: 1 | K12: 1 | L12: 1 | Q12: 4 | R12: 4 | S12: 4 | T12: 4 | U12: 4 | V12: 4 | Z12: 30 | AA12: 24 | AB12: 54
A13: AFC Sever & Workstation | B13: A | C13: 13.002 | D13: 1 | E13: 1 | F13: 1 | G13: 1 | H13: 1 | I13: 1 | J13: 1 | M13: 0 | N13: 0 | O13: 0 | P13: 0 | Q13: 1 | R13: 1 | S13: 1 | T13: 1 | U13: 1 | V13: 1 | W13: 0 | X13: 0 | Y13: 0 | Z13: 25 | AA13: 6 | AB13: 31
A14: Turnstile gates | B14: A | C14: 13.005 | D14: 8 | E14: 8 | F14: 6 | G14: 8 | H14: 8 | I14: 6 | J14: 8 | M14: 0 | N14: 0 | O14: 2 | P14: 0 | Q14: 6 | R14: 6 | S14: 6 | T14: 3 | U14: 3 | V14: 3 | W14: 0 | X14: 0 | Y14: 0 | Z14: 184 | AA14: 27 | AB14: 211
A15: Automatic wide gates | B15: A | C15: 13.010 | D15: 2 | E15: 2 | F15: 1 | G15: 2 | H15: 2 | I15: 2 | J15: 2 | M15: 0 | N15: 0 | O15: 1 | P15: 0 | Q15: 1 | R15: 1 | S15: 1 | T15: 1 | U15: 1 | V15: 1 | W15: 0 | X15: 0 | Y15: 0 | Z15: 43 | AA15: 6 | AB15: 49
A16: bike park and wide gate | B16: A | C16: 13.016 | D16: 4 | E16: 0 | F16: 0 | G16: 0 | H16: 0 | I16: 0 | J16: 0 | M16: 0 | N16: 0 | O16: 0 | P16: 0 | Q16: 0 | R16: 0 | S16: 0 | T16: 0 | U16: 0 | V16: 0 | W16: 0 | X16: 0 | Y16: 0 | Z16: 32 | AA16: 0 | AB16: 32
A17: AVM Onboard computer | B17: A | C17: 15.001 | D17: 0 | E17: 0 | F17: 0 | G17: 0 | H17: 0 | I17: 0 | J17: 0 | M17: 1 | N17: 0 | O17: 0 | P17: 0 | Q17: 0 | R17: 0 | S17: 0 | T17: 0 | U17: 0 | V17: 0 | W17: 1 | X17: 0 | Y17: 0 | Z17: =D$1*D17+E$1*E17+F$1*F17+G$1*G17+H$1*H17+I$1*I17+J$1*J17+K$1*K17+L$1*L17+M$1*M17 -> 80 | AA17: =W$1*W17 -> 25 | AB17: 105
A18: RTPI TFT | B18: A | C18: 16.001 | D18: 2 | E18: 1 | F18: 1 | G18: 1 | H18: 4 | I18: 1 | J18: 1 | K18: 2 | L18: 2 | M18: 0 | N18: 0 | O18: 0 | P18: 0 | Q18: 1 | R18: 1 | S18: 1 | T18: 1 | U18: 1 | V18: 1 | W18: 0 | X18: 0 | Y18: 0 | Z18: 46 | AA18: =Q$1*Q18+R$1*R18+S$1*S18+T$1*T18+U$1*U18+V$1*V18 -> 6 | AB18: 52
A19: RTPI 3s | B19: A | C19: 16.002 | D19: 5 | E19: 4 | F19: 0 | G19: 0 | H19: 2 | I19: 0 | J19: 4 | M19: 0 | N19: 1 | O19: 0 | P19: 0 | Q19: 1 | R19: 1 | S19: 1 | T19: 1 | U19: 1 | V19: 1 | W19: 0 | X19: 1 | Y19: 0 | Z19: 70 | AA19: 6 | AB19: 76
A20: RTPI 3d | B20: A | C20: 16.003 | D20: 4 | E20: 4 | F20: 6 | G20: 6 | H20: 4 | I20: 6 | J20: 4 | M20: 0 | N20: 0 | O20: 0 | P20: 0 | Q20: 4 | R20: 4 | S20: 4 | T20: 2 | U20: 2 | V20: 2 | W20: 0 | X20: 0 | Y20: 0 | Z20: 118 | AA20: 18 | AB20: 136
A21: RTPI 5s | B21: A | C21: 16.004 | D21: 4 | E21: 2 | F21: 2 | G21: 2 | H21: 7 | I21: 4 | J21: 2 | M21: 0 | N21: 0 | O21: 0 | P21: 0 | Q21: 0 | R21: 0 | S21: 0 | T21: 0 | U21: 0 | V21: 0 | W21: 0 | X21: 0 | Y21: 0 | Z21: 73 | AA21: 0 | AB21: 73
A22: RTPI 5d | B22: A | C22: 16.005 | D22: 0 | E22: 0 | F22: 2 | G22: 2 | H22: 0 | I22: 0 | J22: 0 | M22: 0 | N22: 0 | O22: 0 | P22: 0 | Q22: 0 | R22: 0 | S22: 0 | T22: 0 | U22: 0 | V22: 0 | W22: 0 | X22: 0 | Y22: 0 | Z22: 16 | AA22: 0 | AB22: 16
A23: Large Overview Display | B23: A | C23: 16.010 | K23: 1 | L23: 0 | Z23: 2 | AA23: 0 | AB23: 2
A24: Display Communication module | B24: A | C24: 16.011 | D24: =SUM(D18:D23) -> 15 | E24: =SUM(E18:E23) -> 11 | F24: 11 | G24: 11 | H24: 17 | I24: 11 | J24: 11 | K24: 3 | L24: 2 | M24: 0 | N24: 0 | O24: 0 | P24: 0 | Q24: =SUM(Q18:Q23) -> 6 | R24: 6 | S24: 6 | T24: 4 | U24: 4 | V24: 4 | W24: 0 | X24: 0 | Y24: 0 | Z24: 325 | AA24: 30 | AB24: 355
A25: Level 0 Secure access Module AFC | B25: A | C25: 17.001 | D25: =SUM(D9:D15)-D12 -> 15 | E25: =SUM(E9:E15)-E12 -> 16 | F25: 13 | G25: 16 | H25: 15 | I25: 13 | J25: 15 | K25: 3 | L25: 2 | M25: 0 | N25: 0 | O25: 0 | P25: 0 | Q25: =SUM(Q9:Q15)-Q12 -> 13 | R25: 13 | S25: 13 | T25: 10 | U25: 10 | V25: 10 | W25: 0 | X25: 0 | Y25: 0 | Z25: =D$1*D25+E$1*E25+F$1*F25+G$1*G25+H$1*H25+I$1*I25+J$1*J25+K$1*K25+L$1*L25 -> 376 | AA25: 69 | AB25: 445
A26: Sur. Camera 1 2 MP, 1/2.8" imager size, 2.8 mm lens, Dome | B26: B | C26: 14.002 | D26: 2 | E26: 2 | F26: 2 | G26: 2 | H26: 2 | I26: 3 | J26: =E26 -> 2 | M26: 0 | N26: 0 | O26: 0 | P26: 0 | Q26: 0 | R26: 0 | S26: 0 | T26: 0 | U26: 0 | V26: 0 | W26: 0 | X26: 0 | Y26: 0 | Z26: =D$1*D26+E$1*E26+F$1*F26+G$1*G26+H$1*H26+I$1*I26+J$1*J26+K$1*K26+L$1*L26 -> 51 | AA26: =Q$1*Q26+R$1*R26+S$1*S26+T$1*T26+U$1*U26+V$1*V26+W$1*W26+X$1*X26+Y$1*Y26 -> 0 | AB26: 51
A27: Sur. Camera 2 3 MP to 4 MP, 1/2.8" to 1/3" imager size, 2.8 mm lens, Dome | B27: B | C27: 14.003 | D27: 3 | E27: 4 | F27: 2 | G27: 1 | H27: 1 | I27: 6 | J27: =E27 -> 4 | M27: 0 | N27: 0 | O27: 0 | P27: 0 | Q27: 0 | R27: 0 | S27: 0 | T27: 0 | U27: 0 | V27: 0 | W27: 0 | X27: 0 | Y27: 0 | Z27: 74 | AA27: 0 | AB27: 74
A28: Sur. Camera 3 3 MP to 4 MP, 1/2.8" to 1/3" imager size, 4 mm lens, Dome | B28: B | C28: 14.004 | D28: 5 | E28: 4 | F28: 2 | G28: 4 | H28: 4 | I28: 0 | J28: 4 | M28: 0 | N28: 0 | O28: 0 | P28: 0 | Q28: 0 | R28: 0 | S28: 0 | T28: 0 | U28: 0 | V28: 0 | W28: 0 | X28: 0 | Y28: 0 | Z28: 90 | AA28: 0 | AB28: 90
A29: Sur. Camera 4 5 MP to 6 MP, 1/2.9" to 1/3" imager size, 2.8 mm lens, Dome | B29: B | C29: 14.005 | D29: 0 | E29: 0 | F29: 3 | G29: 2 | H29: 2 | I29: 26 | J29: 0 | M29: 0 | N29: 0 | O29: 0 | P29: 0 | Q29: 0 | R29: 0 | S29: 0 | T29: 0 | U29: 0 | V29: 0 | W29: 0 | X29: 0 | Y29: 0 | Z29: 51 | AA29: 0 | AB29: 51
A30: Sur. Camera 5 5 MP to 6 MP, 1/2.9" to 1/3" imager size, 4 mm lens, Dome | B30: B | C30: 14.006 | D30: 3 | E30: 2 | F30: 2 | G30: 0 | H30: 2 | I30: 14 | J30: 2 | M30: 0 | N30: 0 | O30: 0 | P30: 0 | Q30: 0 | R30: 0 | S30: 0 | T30: 0 | U30: 0 | V30: 0 | W30: 0 | X30: 0 | Y30: 0 | Z30: 68 | AA30: 0 | AB30: 68
A31: Sur. Camera 6 5 MP to 6 MP, 1/2.9" to 1/3" imager size, 6 mm lens, Dome | B31: B | C31: 14.007 | D31: 2 | E31: 2 | F31: 0 | G31: 2 | H31: 0 | I31: 16 | J31: 2 | M31: 0 | N31: 0 | O31: 0 | P31: 0 | Q31: 0 | R31: 0 | S31: 0 | T31: 0 | U31: 0 | V31: 0 | W31: 0 | X31: 0 | Y31: 0 | Z31: 48 | AA31: 0 | AB31: 48
A32: Sur. Camera 7 5 MP to 6 MP, 1/2.9" to 1/3" imager size, 12 mm lens, Dome | B32: B | C32: 14.008 | D32: 1 | J32: 0 | M32: 0 | N32: 0 | O32: 0 | P32: =1/90 -> 0.01111111111 | Q32: 0 | R32: 0 | S32: 0 | T32: 0 | U32: 0 | V32: 0 | W32: 0 | X32: 0 | Y32: 0 | Z32: =ROUNDUP(D$1*D32+E$1*E32+F$1*F32+G$1*G32+H$1*H32+I$1*I32+J$1*J32+M$1*M32+N$1*N32+O$1*O32+P$1*P32,0) -> 257 | AA32: 0 | AB32: 257
A33: Sur. Camera 8 8 MP, 1/2.5" imager size, 4 mm lens, Dome | B33: B | C33: 14.009 | D33: 8 | E33: 8 | F33: 6 | G33: 8 | H33: 8 | I33: 12 | J33: 8 | M33: 0 | N33: 0 | O33: 0 | P33: 0 | Q33: 0 | R33: 0 | S33: 0 | T33: 0 | U33: 0 | V33: 0 | W33: 0 | X33: 0 | Y33: 0 | Z33: =D$1*D33+E$1*E33+F$1*F33+G$1*G33+H$1*H33+I$1*I33+J$1*J33+M$1*M33+N$1*N33+O$1*O33+P$1*P33 -> 190 | AA33: 0 | AB33: 190
A34: Sur. Camera 9 :8 MP,5 MP to 6 MP, 1/2.9" to 1/3" imager size, PTZ | B34: B | C34: 14.010 | D34: 1 | J34: 0 | M34: 0 | N34: 0 | O34: 0 | P34: 0 | Q34: 0 | R34: 0 | S34: 0 | T34: 0 | U34: 0 | V34: 0 | W34: 0 | X34: 0 | Y34: 0 | Z34: 8 | AA34: 0 | AB34: 8
A35: Sur. Camera 4 5 MP to 6 MP, 1/2.9" to 1/3" imager size, 2.8 mm lens, Dome | B35: B | C35: 14.012 | D35: 0 | E35: 0 | F35: 0 | G35: 0 | H35: 0 | I35: 0 | J35: 0 | M35: 0 | N35: 0 | O35: 25 | P35: 0 | Q35: 0 | R35: 0 | S35: 0 | T35: 0 | U35: 0 | V35: 0 | W35: 0 | X35: 0 | Y35: 0 | Z35: 25 | AA35: 0 | AB35: 25
A36: Sur. Camera 9 :8 MP,5 MP to 6 MP, 1/2.9" to 1/3" imager size, PTZ | B36: B | C36: 14.013 | D36: 0 | E36: 0 | F36: 0 | G36: 0 | H36: 0 | I36: 0 | J36: 0 | M36: 0 | O36: 4 | P36: 0 | Q36: 0 | R36: 0 | S36: 0 | T36: 0 | U36: 0 | V36: 0 | W36: 0 | X36: 0 | Y36: 0 | Z36: 4 | AA36: 0 | AB36: 4
A37: Sur. Camera 4 5 MP to 6 MP, 1/2.9" to 1/3" imager size, 2.8 mm lens, Dome | B37: B | C37: 14.014 | D37: 0 | E37: 0 | F37: 0 | G37: 0 | H37: 0 | I37: 0 | J37: 0 | M37: 0 | N37: 15 | P37: 0 | Q37: 0 | R37: 0 | S37: 0 | T37: 0 | U37: 0 | V37: 0 | W37: 0 | X37: 0 | Y37: 0 | Z37: 15 | AA37: 0 | AB37: 15
A38: Sur. Camera 9 :8 MP,5 MP to 6 MP, 1/2.9" to 1/3" imager size, PTZ | B38: B | C38: 14.015 | D38: 0 | E38: 0 | F38: 0 | G38: 0 | H38: 0 | I38: 0 | J38: 0 | M38: 0 | N38: 18 | P38: 0 | Q38: 0 | R38: 0 | S38: 0 | T38: 0 | U38: 0 | V38: 0 | W38: 0 | X38: 0 | Y38: 0 | Z38: 18 | AA38: 0 | AB38: 18
A39: Sur. Camera 6 5 MP to 6 MP, 1/2.9" to 1/3" imager size, 6 mm lens, Dome | B39: B | C39: 14.016 | D39: 0 | E39: 0 | F39: 0 | G39: 0 | H39: 0 | I39: 0 | J39: 0 | M39: 0 | N39: 33 | P39: 0 | Q39: 0 | R39: 0 | S39: 0 | T39: 0 | U39: 0 | V39: 0 | W39: 0 | X39: 0 | Y39: 0 | Z39: 33 | AA39: 0 | AB39: 33
A40: Sur. Camera 2 3 MP to 4 MP, 1/2.8" to 1/3" imager size, 2.8 mm lens, Dome | B40: B | C40: 14.018 | D40: 0 | E40: 0 | F40: 0 | G40: 0 | H40: 0 | I40: 0 | J40: 0 | M40: 0 | N40: 0 | O40: 0 | P40: 0 | Q40: 9 | R40: 9 | S40: 9 | T40: 4 | U40: 4 | V40: 4 | W40: 0 | X40: 0 | Y40: 0 | Z40: 0 | AA40: 39 | AB40: 39
A41: Sur. Camera 4 5 MP to 6 MP, 1/2.9" to 1/3" imager size, 2.8 mm lens, Dome | B41: B | C41: 14.019 | D41: 0 | E41: 0 | F41: 0 | G41: 0 | H41: 0 | I41: 0 | J41: 0 | M41: 0 | N41: 0 | O41: 0 | P41: 0 | Q41: 10 | R41: 10 | S41: 10 | T41: 4 | U41: 4 | V41: 4 | W41: 0 | X41: 0 | Y41: 0 | Z41: 0 | AA41: 42 | AB41: 42
A42: Sur. Camera 7 5 MP to 6 MP, 1/2.9" to 1/3" imager size, 12 mm lens, Dome | B42: B | C42: 14.020 | D42: 0 | E42: 0 | F42: 0 | G42: 0 | H42: 0 | I42: 0 | J42: 0 | M42: 0 | N42: 0 | O42: 0 | P42: 0 | Q42: 0 | R42: 0 | S42: 0 | T42: 0 | U42: 0 | V42: 0 | W42: 0 | X42: 0 | Y42: =1/62 -> 0.01612903226 | Z42: 0 | AA42: =ROUNDUP(Q$1*Q42+R$1*R42+S$1*S42+T$1*T42+U$1*U42+V$1*V42+W$1*W42+X$1*X42+Y$1*Y42,0) -> 60 | AB42: 60
A43: Sur. Camera 4 5 MP to 6 MP, 1/2.9" to 1/3" imager size, 2.8 mm lens, Dome | B43: B | C43: 14.022 | D43: 0 | E43: 0 | F43: 0 | G43: 0 | H43: 0 | I43: 0 | J43: 0 | M43: 0 | N43: 0 | O43: 0 | P43: 0 | Q43: 0 | R43: 0 | S43: 0 | T43: 0 | U43: 0 | V43: 0 | W43: 0 | X43: 23 | Y43: 0 | Z43: 0 | AA43: 23 | AB43: 23
A44: Secrity walkthrough gates GL | B44: B | C44: 14.023 | D44: 2 | E44: 2 | F44: 1 | G44: 2 | H44: 2 | I44: 2 | J44: 2 | M44: 0 | N44: 2 | O44: 1 | P44: 0 | Q44: 0 | R44: 0 | S44: 0 | T44: 0 | U44: 0 | V44: 0 | W44: 0 | X44: 0 | Y44: 0 | Z44: 46 | AA44: 0 | AB44: 46
A45: Handheld scanners GL | B45: B | C45: 14.024 | D45: 2 | E45: 2 | F45: 1 | G45: 2 | H45: 2 | I45: 2 | J45: 2 | M45: 0 | N45: 2 | O45: 1 | P45: 0 | Q45: 0 | R45: 0 | S45: 0 | T45: 0 | U45: 0 | V45: 0 | W45: 0 | X45: 0 | Y45: 0 | Z45: 46 | AA45: 0 | AB45: 46
A46: Security Barrier GL | B46: B | C46: 14.025 | D46: 0 | E46: 0 | F46: 0 | G46: 0 | H46: 0 | I46: 0 | J46: 0 | M46: 0 | N46: 1 | O46: 0 | P46: 0 | Q46: 0 | R46: 0 | S46: 0 | T46: 0 | U46: 0 | V46: 0 | W46: 0 | X46: 0 | Y46: 0 | Z46: 1 | AA46: 0 | AB46: 1
A47: Secrity walkthrough gates OL | B47: B | C47: 14.026 | D47: 0 | E47: 0 | F47: 0 | G47: 0 | H47: 0 | I47: 0 | J47: 0 | M47: 0 | N47: 0 | O47: 0 | P47: 0 | Q47: 1 | R47: 1 | S47: 1 | T47: 1 | U47: 1 | V47: 1 | W47: 0 | X47: 1 | Y47: 0 | Z47: 0 | AA47: 7 | AB47: 7
A48: Handheld scanners OL | B48: B | C48: 14.027 | D48: 0 | E48: 0 | F48: 0 | G48: 0 | H48: 0 | I48: 0 | J48: 0 | M48: 0 | N48: 0 | O48: 0 | P48: 0 | Q48: 1 | R48: 1 | S48: 1 | T48: 1 | U48: 1 | V48: 1 | W48: 0 | X48: 1 | Y48: 0 | Z48: 0 | AA48: 7 | AB48: 7
A49: Security Barrier OL | B49: B | C49: 14.028 | D49: 0 | E49: 0 | F49: 0 | G49: 0 | H49: 0 | I49: 0 | J49: 0 | M49: 0 | N49: 0 | O49: 0 | P49: 0 | Q49: 0 | R49: 0 | S49: 0 | T49: 0 | U49: 0 | V49: 0 | W49: 0 | X49: 1 | Y49: 0 | Z49: 0 | AA49: 1 | AB49: 1
A50: Smart Energy Analyzer | B50: B | C50: 2.005 | D50: 2 | E50: 2 | F50: 2 | G50: 2 | H50: 2 | I50: 2 | J50: 2 | N50: 2 | O50: 2 | Q50: 2 | R50: 2 | S50: 2 | T50: 2 | U50: 2 | V50: 2 | X50: 2 | Z50: 54 | AA50: 14 | AB50: 68
A51: NVR for local video storage at stations | B51: B | C51: 15.003 | D51: 1 | E51: 1 | F51: 1 | G51: 1 | H51: 1 | I51: 1 | J51: 1 | Z51: 25 | AA51: 0 | AB51: 25
A52: DWDM OADM 2 Channel | B52: B | C52: 6.002 | D52: 1 | E52: 1 | F52: 1 | G52: 1 | H52: 1 | I52: 1 | J52: 1 | Z52: 25 | AA52: 0 | AB52: 25
A53: SFP 10G | B53: B | C53: 6.008 | D53: 6 | E53: 6 | F53: 6 | G53: 6 | H53: 6 | I53: 6 | J53: 6 | Z53: 150 | AA53: 0 | AB53: 150
A54: Supply Installation of Fiber Cable | B54: B | C54: 6.008 | J54: 0 | P54: 2.5 | Z54: 55875 | AA54: 0 | AB54: 55875
A55: 96-core fiber splice closure | B55: B | C55: 6.010 | D55: 2 | E55: 2 | F55: 2 | G55: 2 | H55: 2 | I55: 2 | J55: 2 | N55: 1 | O55: 1 | Z55: 52 | AA55: 0 | AB55: 52
A56: Fiber ODF 12 Port | B56: B | C56: 6.013 | D56: 1 | E56: 1 | F56: 1 | G56: 1 | H56: 1 | I56: 1 | J56: 1 | Z56: 25 | AA56: 0 | AB56: 25
A57: Optical Patch Cord | B57: B | C57: 6.014 | D57: 8 | E57: 8 | F57: 8 | G57: 8 | H57: 8 | I57: 8 | J57: 8 | Z57: 200 | AA57: 0 | AB57: 200
A58: Installation of 6 Core fiber cable | B58: B | C58: 6.015 | D58: 500 | E58: 500 | F58: 500 | G58: 500 | H58: 500 | I58: 500 | J58: 500 | Z58: 12500 | AA58: 0 | AB58: 12500
A59: 24 Port Ethernet Switch for Cooridor Camera | B59: B | C59: 6.016 | D59: 1 | E59: 1 | F59: 1 | G59: 1 | H59: 1 | I59: 1 | J59: 1 | Z59: 25 | AA59: 0 | AB59: 25
A60: 2 Port Media Converter | B60: B | C60: 6.017 | D60: 20 | E60: 20 | F60: 20 | G60: 20 | H60: 20 | I60: 20 | J60: 20 | Z60: 500 | AA60: 0 | AB60: 500
A61: 4 Port Media Converter | B61: B | C61: 6.018 | D61: 2 | E61: 2 | F61: 2 | G61: 2 | H61: 2 | I61: 2 | J61: 2 | N61: 1 | O61: 1 | Z61: 52 | AA61: 0 | AB61: 52
A62: Fiber Cable 24 Core | B62: B | C62: 6.019 | J62: 0 | P62: 2.5 | Z62: 55875 | AA62: 0 | AB62: 55875
A63: Fiber Cable 2 Core | B63: B | C63: 6.020 | D63: 200 | E63: 200 | F63: 200 | G63: 200 | H63: 200 | I63: 200 | J63: 200 | Z63: 5000 | AA63: 0 | AB63: 5000
A64: Fiber ODF 24 Port for CCTV | B64: B | C64: 6.021 | D64: 2 | E64: 1 | F64: 1 | G64: 1 | H64: 1 | I64: 1 | J64: 1 | Z64: 33 | AA64: 0 | AB64: 33
A65: Fiber Splice Closure 24 Port | B65: B | C65: 6.022 | D65: 20 | E65: 20 | F65: 20 | G65: 20 | H65: 20 | I65: 20 | J65: 20 | Z65: 500 | AA65: 0 | AB65: 500
A66: UPS 2kVA for CCTV Camera | B66: B | C66: 6.023 | D66: 1 | E66: 1 | F66: 1 | G66: 1 | H66: 1 | I66: 1 | J66: 1 | Z66: 25 | AA66: 0 | AB66: 25
A67: Wifi mesh static devices | B67: B | C67: 7.001 | P67: =1/500 -> 0.002 | Z67: =ROUNDUP(D$1*D67+E$1*E67+F$1*F67+G$1*G67+H$1*H67+I$1*I67+J$1*J67+M$1*M67+N$1*N67+O$1*O67+P$1*P67,0) -> 45 | AA67: 0 | AB67: 45
A68: WiFi mesh bus Onboard Unit | B68: B | C68: 7.002 | M68: 1 | Z68: 80 | AA68: 0 | AB68: 80
A69: Wifimesh static devices | B69: B | C69: 8.001 | Y69: =1/500 -> 0.002 | Z69: 0 | AA69: =ROUNDUP(Q$1*Q69+R$1*R69+S$1*S69+T$1*T69+U$1*U69+V$1*V69+W$1*W69+X$1*X69+Y$1*Y69,0) -> 8 | AB69: 8
A70: WiFi mesh bus Onboard Unit | B70: B | C70: 8.002 | W70: 1 | Z70: 0 | AA70: 25 | AB70: 25
A71: 24 Port Ethernet Switches for Stations | B71: B | C71: 9.001 | D71: 4 | E71: 3 | F71: 3 | G71: 3 | H71: 2 | I71: 4 | J71: 3 | Z71: 83 | AA71: 0 | AB71: 83
A72: Ethernet Switch with 16 PoE ports for Stations | B72: B | C72: 9.002 | D72: 5 | E72: 6 | F72: 3 | G72: 4 | H72: 4 | I72: 5 | J72: 6 | Z72: 116 | AA72: 0 | AB72: 116
A73: Rack 42U | B73: B | C73: 9.003 | D73: 1 | E73: 1 | F73: 1 | G73: 1 | H73: 1 | I73: 1 | J73: 1 | Z73: 25 | AA73: 0 | AB73: 25
A74: Rack 9U | B74: B | C74: 9.004 | D74: 2 | E74: 2 | F74: 2 | G74: 2 | H74: 2 | I74: 2 | J74: 2 | Z74: 50 | AA74: 0 | AB74: 50
A75: Supply and Laying of CAT6 Cable in stations | B75: B | C75: 9.005 | D75: 80 | E75: 80 | F75: 80 | G75: 80 | H75: 80 | I75: 80 | J75: 80 | Z75: 2000 | AA75: 0 | AB75: 2000
A76: Supply and Installation of Duplex Data and Voice Outlet | B76: B | C76: 9.006 | D76: 80 | E76: 80 | F76: 80 | G76: 80 | H76: 80 | I76: 80 | J76: 80 | Z76: 2000 | AA76: 0 | AB76: 2000
A77: Supply and Installation of 24 Port Patch Panels | B77: B | C77: 9.007 | D77: 4 | E77: 4 | F77: 4 | G77: 4 | H77: 4 | I77: 4 | J77: 4 | Z77: 100 | AA77: 0 | AB77: 100
A78: Patch Cord 1 meter | B78: B | C78: 9.008 | D78: 50 | E78: 50 | F78: 50 | G78: 50 | H78: 50 | I78: 50 | J78: 50 | Z78: 1250 | AA78: 0 | AB78: 1250
A79: Patch Cord 3 meter | B79: B | C79: 9.009 | D79: 30 | E79: 30 | F79: 30 | G79: 30 | H79: 30 | I79: 30 | J79: 30 | Z79: 750 | AA79: 0 | AB79: 750
A80: IP Telephone | B80: B | C80: 9.012 | D80: 4 | E80: 4 | F80: 4 | G80: 4 | H80: 4 | I80: 4 | J80: 4 | Z80: 100 | AA80: 0 | AB80: =Z80+AA80 -> 100
A81: Network Security Appliance | B81: B | C81: 9.014 | D81: 1 | E81: 1 | F81: 1 | G81: 1 | H81: 1 | I81: 1 | J81: 1 | Z81: 25 | AA81: 0 | AB81: 25
A82: 24 Port Ethernet Switches for Stations | B82: B | C82: 10.001 | Q82: 3 | R82: 3 | S82: 3 | T82: 2 | U82: 2 | V82: 2 | Z82: 0 | AA82: 15 | AB82: 15
A83: Ethernet Switch with 16 PoE ports for Stations | B83: B | C83: 10.002 | Q83: 1 | R83: 1 | S83: 1 | T83: 1 | U83: 1 | V83: 1 | Z83: 0 | AA83: 6 | AB83: 6
A84: Rack 42U | B84: B | C84: 10.003 | Q84: 1 | R84: 1 | S84: 1 | T84: 1 | U84: 1 | V84: 1 | Z84: 0 | AA84: 6 | AB84: 6
A85: Rack 9U | B85: B | C85: 10.004 | Q85: 2 | R85: 2 | S85: 2 | T85: 2 | U85: 2 | V85: 2 | Z85: 0 | AA85: 12 | AB85: 12
A86: Supply and Laying of CAT6 Cable in stations | B86: B | C86: 10.005 | Q86: 40 | R86: 40 | S86: 40 | T86: 30 | U86: 30 | V86: 30 | Z86: 0 | AA86: 210 | AB86: 210
A87: Supply and Installation of Duplex Data and Voice Outlet | B87: B | C87: 10.006 | Q87: 40 | R87: 40 | S87: 40 | T87: 30 | U87: 30 | V87: 30 | Z87: 0 | AA87: 210 | AB87: 210
A88: Supply and Installation of 24 Port Patch Panels | B88: B | C88: 10.007 | Q88: 3 | R88: 3 | S88: 3 | T88: 2 | U88: 2 | V88: 2 | Z88: 0 | AA88: 15 | AB88: 15
A89: Patch Cord 1 meter | B89: B | C89: 10.008 | Q89: 30 | R89: 30 | S89: 30 | T89: 20 | U89: 20 | V89: 20 | Z89: 0 | AA89: 150 | AB89: 150
A90: Patch Cord 3 meter | B90: B | C90: 10.009 | Q90: 10 | R90: 10 | S90: 10 | T90: 10 | U90: 10 | V90: 10 | Z90: 0 | AA90: 60 | AB90: 60
A91: IP Telephone | B91: B | C91: 10.012 | Q91: 2 | R91: 2 | S91: 2 | T91: 2 | U91: 2 | V91: 2 | Z91: 0 | AA91: 12 | AB91: 12
A92: Network Security Appliance | B92: B | C92: 10.014 | Q92: 1 | R92: 1 | S92: 1 | T92: 1 | U92: 1 | V92: 1 | Z92: 0 | AA92: 6 | AB92: 6
A93: DWDM OADM 4 Channel | B93: B | C93: 12.001 | Q93: 1 | R93: 1 | S93: 1 | T93: 1 | U93: 1 | V93: 1 | X93: 1 | Z93: 0 | AA93: =Q$1*Q93+R$1*R93+S$1*S93+T$1*T93+U$1*U93+V$1*V93+W$1*W93+X$1*X93+Y$1*Y93 -> 7 | AB93: 7
A94: SFP 10G | B94: B | C94: 12.003 | Q94: 5 | R94: 5 | S94: 5 | T94: 5 | U94: 5 | V94: 5 | X94: 5 | Z94: 0 | AA94: 35 | AB94: 35
A95: Supply Installation of Fiber Cable 96 core | B95: B | C95: 12.004 | Y95: 2.5 | Z95: 0 | AA95: 9250 | AB95: 9250
A96: 96-core fiber splice closure | B96: B | C96: 12.006 | Q96: 2 | R96: 2 | S96: 2 | T96: 2 | U96: 2 | V96: 2 | Z96: 0 | AA96: 12 | AB96: 12
A97: Optical Fiber Cable 6 Core | B97: B | C97: 12.006 | Q97: 100 | R97: 100 | S97: 100 | T97: 100 | U97: 100 | V97: 100 | Z97: 0 | AA97: 600 | AB97: 600
A98: Optical Patch Cord | B98: B | C98: 12.007 | Q98: 2 | R98: 2 | S98: 2 | T98: 2 | U98: 2 | V98: 2 | Z98: =D$1*D98+E$1*E98+F$1*F98+G$1*G98+H$1*H98+I$1*I98+J$1*J98+M$1*M98+N$1*N98+O$1*O98+P$1*P98 -> 0 | AA98: 12 | AB98: 12
A99: Media Converter 2 Port | B99: B | C99: 12.008 | Q99: 20 | R99: 20 | S99: 20 | T99: 20 | U99: 20 | V99: 20 | Z99: 0 | AA99: 120 | AB99: 120
A100: Media Converter 24 Port | B100: B | C100: 12.009 | Q100: 1 | R100: 1 | S100: 1 | T100: 1 | U100: 1 | V100: 1 | X100: 1 | Z100: 0 | AA100: 7 | AB100: 7
A101: Ethernet Switch 24 Port | B101: B | C101: 12.010 | Q101: 1 | R101: 1 | S101: 1 | T101: 1 | U101: 1 | V101: 1 | X101: 1 | Z101: 0 | AA101: 7 | AB101: 7
A102: Optical Fiber cable 24 core | B102: B | C102: 12.011 | Y102: 2.5 | Z102: 0 | AA102: 9250 | AB102: 9250
A103: Optical Fiber Cable 2 Core | B103: B | C103: 12.012 | Q103: 200 | R103: 200 | S103: 200 | T103: 200 | U103: 200 | V103: 200 | Z103: 0 | AA103: 1200 | AB103: 1200
A104: Fiber ODF 24 Port | B104: B | C104: 12.013 | Q104: 1 | R104: 1 | S104: 1 | T104: 1 | U104: 1 | V104: 1 | Y104: 0 | Z104: 0 | AA104: 6 | AB104: 6
A105: Fiber Splice Closure 24 Port | B105: B | C105: 12.014 | Q105: 20 | R105: 20 | S105: 20 | T105: 20 | U105: 20 | V105: 20 | Z105: 0 | AA105: 120 | AB105: 120
A106: UPS System 5 kVA | B106: B | C106: 12.015 | Q106: 1 | R106: 1 | S106: 1 | T106: 1 | U106: 1 | V106: 1 | Y106: 0 | Z106: 0 | AA106: 6 | AB106: 6
Z107: 0
Z108: 0
Z109: 0
Z110: 0
Z111: 0
Z112: 0
Z113: 0
A116: ITS systems | B116: Work Stations | D116: IT Mand | E116: IT Op | F116: Furniture Mand | G116: Furniture Op
A117: AFC L4 | B117: 4
A118: AVM L4 | B118: 2
A119: OCC admin L4 | B119: =F119 -> 30 | F119: 30 | G119: per unit
A120: OCC Disp L4 | B120: =F120 -> 34 | C120: Desks for IITS and for cctv | D120: 11 | E120: 23 per unit | F120: 34 | G120: per unit
A121: RTPI L4 | B121: 0
A122: BI L4 | B122: 4
A123: AFC L3 | B123: 4
A124: AVM Disp L3 | B124: =D120 -> 11
A125: RTPI L3 in OCC | B125: 5
A130: DMS | B130: Item Nr
A131: DMS L3 Green Line | B131: 8
A132: DMS L3 Orange Line | B132: 4
A133: UPS for BDMS Server for green line | B133: 1
A134: UPS for BDMS Server for orange line | B134: 1
A135: UPS for BDMS workstations for green line | B135: 8
A136: UPS for BDMS workstations for orange | B136: 4
A137: RFID Tags for green line | B137: 150
A138: RFID Tags for orange line | B138: 50
A139: RFID Readers for green line | B139: 1
A140: RFID Readers for orange line | B140: 1
A141: Parking Sensors for green line , underground wireless magnetic type | B141: 80
A142: Parking Sensors for orange line, underground wireless magnetic type | B142: 25
A143: Parking Sensor wireless monitoring units for green line | B143: 10
A144: Parking Sensor wireless monitoring units for orange line | B144: 5
A145: Additional wireless monitoring units for green line | B145: 1
A146: Additional wireless monitoring units for orange line | B146: 1
A147: Fuel Dispensing stations with electronic interface for green line | B147: 4
A148: Fuel Dispensing stations with electronic interface for orange line | B148: 2
A149: Biometric Access Control Stations for green line | B149: 4
A150: Biometric Access Control Stations for orange line | B150: 3
A151: Driver Training Simulator Stations with motion platform | B151: 4
A152: Driver Training Simulator Instructor Station | B152: 1

Sheet EE Summary (hidden)
B1: 2019-10-10
A2: Green Line BRTS IITS EE Summary
A3: Package A without GST | B3: ='Pack A Cost Breakdown L1'!M5 -> 
A4: Package A with GST | B4: ='Pack A Cost Breakdown L1'!N5 -> 
A5: Package B without GST | B5: ='Cost Breakdown Pack B L2'!O10 -> 
A6: Package B with GST | B6: ='Cost Breakdown Pack B L2'!P10 -> 
A7: Total without GST | B7: =B3+B5 -> 
A8: Total with GST | B8: =B4+B6 -> 

Sheet Summary (hidden)
B1: 2019-10-29
A2: Green Line BRTS IITS EE Summary
A3: BOQ Packages In the RFP | B3: Without GST | C3: With GST
A4: Package A | B4: ='Pack A Cost Breakdown L1'!M5 ->  | C4: ='Pack A Cost Breakdown L1'!N5 ->  | E4: pack a | F4: wo gst | G4: with gst
A5: Package B | B5: ='Cost Breakdown Pack B L2'!O10 ->  | C5: ='Cost Breakdown Pack B L2'!P10 ->  | E5: 1790347710 | F5: 2354449735 | G5: 2734841389
A6: ITS Opex (3 years) | B6: 1619362200 | C6: 1846072908 | E6: =B4 ->  | F6: =B4+B5 ->  | G6: =C4+C5 -> 
A7: Total (A+B + Opex) | B7: =B4+B5+B6 ->  | C7: =C4+C5+C6 -> 
E8: =E5-E6 ->  | F8: =F5-F6 ->  | G8: =G5-G6 -> 
E10: 1605397416
E12: =E10/E6 ->  | F12: =100%-E12 -> 
